Workbook

Sheet totalPROCON
A1: ARCHIVO | B1: HOJA | C1: NUMERAL | D1: CAMPANIA | E1: PERIODO | F1: ANALISTAS | G1: FECHA | H1: HORA | I1: TIPO_SERIE_TRAMO | J1: SERIE_TRAMO | K1: ESTACION_TRANSECTA | L1: NUMERO_ESTACION | M1: UBICACION_ESTACION | N1: LABORATORIO | O1: PROGRAMA | P1: MATRIZ | Q1: TIPO_DE_MUESTRA | R1: TIPO_DE_Parametro | S1: PARAMETRO | T1: UNIDAD | U1: SIGNO | V1: VALOR | W1: RESULTADO_PARA_ESTADISTICA | X1: LIM_DETECION | Y1: LIMITE_CUANTIFICACION | Z1: OBSERVACIONES | AA1: MARGEN | AB1: CIUDAD | AC1: ID | AD1: ESTADO
A2: 1987v2.xlsx | B2: 1987 | D2: C-8701 | E2: 1987-11-01 | G2: 1987-11-23 | H2: s/d | I2: 80 | J2: 80L | K2: Balneario La Concordia (Km40) | L2: 81 | M2: sup.m.arg. | N2: DNH(DINAMA) | O2: Procon-agua | P2: Agua | R2: Bacterias | S2: Coliformes totales | T2: UFC/100ml | V2: 340 | W2: =IF(V2="<LD",X2,IF(V2="<LC",Y2/2,V2)) -> 340 | AA2: Argentina | AB2: Balneario La Concordia | AC2: 59586 | AD2: OK
A3: 1987v2.xlsx | B3: 1987 | D3: C-8701 | E3: 1987-11-01 | G3: 1987-11-23 | H3: s/d | I3: 80 | J3: 80 | K3: Balneario La Concordia (Km40) | L3: 82 | M3: sup.canal | N3: DNH(DINAMA) | O3: Procon-agua | P3: Agua | R3: Bacterias | S3: Coliformes totales | T3: UFC/100ml | V3: 150 | W3: 150 | AA3: Canal | AB3: Canal | AC3: 59587 | AD3: OK
A4: 1987v2.xlsx | B4: 1987 | D4: C-8701 | E4: 1987-11-01 | G4: 1987-11-23 | H4: s/d | I4: 80 | J4: 80U | K4: Balneario La Concordia (Km40) | L4: 83 | M4: sup.m.urug. | N4: DNH(DINAMA) | O4: Procon-agua | P4: Agua | R4: Bacterias | S4: Coliformes totales | T4: UFC/100ml | V4: 50 | W4: 50 | AA4: Uruguaya | AB4: Balneario La Concordia | AC4: 59588 | AD4: OK
A5: 1987v2.xlsx | B5: 1987 | D5: C-8701 | E5: 1987-11-01 | G5: 1987-11-23 | H5: s/d | I5: 80 | J5: 80L | K5: Balneario La Concordia (Km40) | L5: 81 | M5: sup.m.arg. | N5: DNH(DINAMA) | O5: Procon-agua | P5: Agua | R5: Bacterias | S5: Coliformes termotolerantes | T5: UFC/100ml | V5: 39 | W5: 39 | AA5: Argentina | AB5: Balneario La Concordia | AC5: 59607 | AD5: OK
A6: 1987v2.xlsx | B6: 1987 | D6: C-8701 | E6: 1987-11-01 | G6: 1987-11-23 | H6: s/d | I6: 80 | J6: 80 | K6: Balneario La Concordia (Km40) | L6: 82 | M6: sup.canal | N6: DNH(DINAMA) | O6: Procon-agua | P6: Agua | R6: Bacterias | S6: Coliformes termotolerantes | T6: UFC/100ml | V6: 28 | W6: 28 | AA6: Canal | AB6: Canal | AC6: 59608 | AD6: OK
A7: 1987v2.xlsx | B7: 1987 | D7: C-8701 | E7: 1987-11-01 | G7: 1987-11-23 | H7: s/d | I7: 80 | J7: 80U | K7: Balneario La Concordia (Km40) | L7: 83 | M7: sup.m.urug. | N7: DNH(DINAMA) | O7: Procon-agua | P7: Agua | R7: Bacterias | S7: Coliformes termotolerantes | T7: UFC/100ml | V7: 16 | W7: 16 | AA7: Uruguaya | AB7: Balneario La Concordia | AC7: 59609 | AD7: OK
A8: 1987v2.xlsx | B8: 1987 | D8: C-8701 | E8: 1987-11-01 | G8: 1987-11-23 | H8: s/d | I8: 80 | J8: 80L | K8: Balneario La Concordia (Km40) | L8: 81 | M8: sup.m.arg. | N8: SOHMA | O8: Procon-agua | P8: Agua | R8: Biocidas | S8: alfa-H.C.H. | T8: ng/l | U8: < | V8: <LD | W8: 0.9 | X8: 0.9 | AA8: Argentina | AB8: Balneario La Concordia | AC8: 60260 | AD8: OK
A9: 1987v2.xlsx | B9: 1987 | D9: C-8701 | E9: 1987-11-01 | G9: 1987-11-23 | H9: s/d | I9: 80 | J9: 80L | K9: Balneario La Concordia (Km40) | L9: 81 | M9: sup.m.arg. | N9: SOHMA | O9: Procon-agua | P9: Agua | R9: Biocidas | S9: beta-H.C.H. | T9: ng/l | U9: < | V9: <LD | W9: 1 | X9: 1 | AA9: Argentina | AB9: Balneario La Concordia | AC9: 60261 | AD9: OK
A10: 1987v2.xlsx | B10: 1987 | D10: C-8701 | E10: 1987-11-01 | G10: 1987-11-23 | H10: s/d | I10: 80 | J10: 80L | K10: Balneario La Concordia (Km40) | L10: 81 | M10: sup.m.arg. | N10: SOHMA | O10: Procon-agua | P10: Agua | R10: Biocidas | S10: Heptacloro | T10: ng/l | U10: < | V10: <LD | W10: 0.2 | X10: 0.2 | AA10: Argentina | AB10: Balneario La Concordia | AC10: 60262 | AD10: OK
A11: 1987v2.xlsx | B11: 1987 | D11: C-8701 | E11: 1987-11-01 | G11: 1987-11-23 | H11: s/d | I11: 80 | J11: 80L | K11: Balneario La Concordia (Km40) | L11: 81 | M11: sup.m.arg. | N11: SOHMA | O11: Procon-agua | P11: Agua | R11: Biocidas | S11: Heptacloro-epoxi | T11: ng/l | U11: < | V11: <LD | W11: 0.7 | X11: 0.7 | AA11: Argentina | AB11: Balneario La Concordia | AC11: 60263 | AD11: OK
A12: 1987v2.xlsx | B12: 1987 | D12: C-8701 | E12: 1987-11-01 | G12: 1987-11-23 | H12: s/d | I12: 80 | J12: 80L | K12: Balneario La Concordia (Km40) | L12: 81 | M12: sup.m.arg. | N12: SOHMA | O12: Procon-agua | P12: Agua | R12: Biocidas | S12: Aldrin | T12: ng/l | U12: < | V12: <LD | W12: 0.8 | X12: 0.8 | AA12: Argentina | AB12: Balneario La Concordia | AC12: 60264 | AD12: OK
A13: 1987v2.xlsx | B13: 1987 | D13: C-8701 | E13: 1987-11-01 | G13: 1987-11-23 | H13: s/d | I13: 80 | J13: 80 | K13: Balneario La Concordia (Km40) | L13: 82 | M13: sup.canal | N13: SOHMA | O13: Procon-agua | P13: Agua | R13: Biocidas | S13: alfa-H.C.H. | T13: ng/l | U13: < | V13: <LD | W13: 0.9 | X13: 0.9 | AA13: Canal | AB13: Canal | AC13: 60265 | AD13: OK
A14: 1987v2.xlsx | B14: 1987 | D14: C-8701 | E14: 1987-11-01 | G14: 1987-11-23 | H14: s/d | I14: 80 | J14: 80 | K14: Balneario La Concordia (Km40) | L14: 82 | M14: sup.canal | N14: SOHMA | O14: Procon-agua | P14: Agua | R14: Biocidas | S14: beta-H.C.H. | T14: ng/l | U14: < | V14: <LD | W14: 1 | X14: 1 | AA14: Canal | AB14: Canal | AC14: 60266 | AD14: OK
A15: 1987v2.xlsx | B15: 1987 | D15: C-8701 | E15: 1987-11-01 | G15: 1987-11-23 | H15: s/d | I15: 80 | J15: 80 | K15: Balneario La Concordia (Km40) | L15: 82 | M15: sup.canal | N15: SOHMA | O15: Procon-agua | P15: Agua | R15: Biocidas | S15: Heptacloro | T15: ng/l | U15: < | V15: <LD | W15: 0.2 | X15: 0.2 | AA15: Canal | AB15: Canal | AC15: 60267 | AD15: OK
A16: 1987v2.xlsx | B16: 1987 | D16: C-8701 | E16: 1987-11-01 | G16: 1987-11-23 | H16: s/d | I16: 80 | J16: 80 | K16: Balneario La Concordia (Km40) | L16: 82 | M16: sup.canal | N16: SOHMA | O16: Procon-agua | P16: Agua | R16: Biocidas | S16: Heptacloro-epoxi | T16: ng/l | U16: < | V16: <LD | W16: 0.7 | X16: 0.7 | AA16: Canal | AB16: Canal | AC16: 60268 | AD16: OK
A17: 1987v2.xlsx | B17: 1987 | D17: C-8701 | E17: 1987-11-01 | G17: 1987-11-23 | H17: s/d | I17: 80 | J17: 80 | K17: Balneario La Concordia (Km40) | L17: 82 | M17: sup.canal | N17: SOHMA | O17: Procon-agua | P17: Agua | R17: Biocidas | S17: Aldrin | T17: ng/l | U17: < | V17: <LD | W17: 0.8 | X17: 0.8 | AA17: Canal | AB17: Canal | AC17: 60269 | AD17: OK
A18: 1987v2.xlsx | B18: 1987 | D18: C-8701 | E18: 1987-11-01 | G18: 1987-11-23 | H18: s/d | I18: 80 | J18: 80U | K18: Balneario La Concordia (Km40) | L18: 83 | M18: sup.m.urug. | N18: SOHMA | O18: Procon-agua | P18: Agua | R18: Biocidas | S18: alfa-H.C.H. | T18: ng/l | U18: < | V18: <LD | W18: 0.9 | X18: 0.9 | AA18: Uruguaya | AB18: Balneario La Concordia | AC18: 60270 | AD18: OK
A19: 1987v2.xlsx | B19: 1987 | D19: C-8701 | E19: 1987-11-01 | G19: 1987-11-23 | H19: s/d | I19: 80 | J19: 80U | K19: Balneario La Concordia (Km40) | L19: 83 | M19: sup.m.urug. | N19: SOHMA | O19: Procon-agua | P19: Agua | R19: Biocidas | S19: beta-H.C.H. | T19: ng/l | U19: < | V19: <LD | W19: 1 | X19: 1 | AA19: Uruguaya | AB19: Balneario La Concordia | AC19: 60271 | AD19: OK
A20: 1987v2.xlsx | B20: 1987 | D20: C-8701 | E20: 1987-11-01 | G20: 1987-11-23 | H20: s/d | I20: 80 | J20: 80U | K20: Balneario La Concordia (Km40) | L20: 83 | M20: sup.m.urug. | N20: SOHMA | O20: Procon-agua | P20: Agua | R20: Biocidas | S20: Heptacloro | T20: ng/l | U20: < | V20: <LD | W20: 0.2 | X20: 0.2 | AA20: Uruguaya | AB20: Balneario La Concordia | AC20: 60272 | AD20: OK
A21: 1987v2.xlsx | B21: 1987 | D21: C-8701 | E21: 1987-11-01 | G21: 1987-11-23 | H21: s/d | I21: 80 | J21: 80U | K21: Balneario La Concordia (Km40) | L21: 83 | M21: sup.m.urug. | N21: SOHMA | O21: Procon-agua | P21: Agua | R21: Biocidas | S21: Heptacloro-epoxi | T21: ng/l | U21: < | V21: <LD | W21: 0.7 | X21: 0.7 | AA21: Uruguaya | AB21: Balneario La Concordia | AC21: 60273 | AD21: OK
A22: 1987v2.xlsx | B22: 1987 | D22: C-8701 | E22: 1987-11-01 | G22: 1987-11-23 | H22: s/d | I22: 80 | J22: 80U | K22: Balneario La Concordia (Km40) | L22: 83 | M22: sup.m.urug. | N22: SOHMA | O22: Procon-agua | P22: Agua | R22: Biocidas | S22: Aldrin | T22: ng/l | U22: < | V22: <LD | W22: 0.8 | X22: 0.8 | AA22: Uruguaya | AB22: Balneario La Concordia | AC22: 60274 | AD22: OK
A23: 1987v2.xlsx | B23: 1987 | D23: C-8701 | E23: 1987-11-01 | G23: 1987-11-23 | H23: s/d | I23: 80 | J23: 80L | K23: Balneario La Concordia (Km40) | L23: 81 | M23: sup.m.arg. | N23: SHN | O23: Procon-agua | P23: Agua | R23: Hidrocarburos | S23: Hidrocarburos-totales | T23: µg/l | U23: = | V23: 21 | W23: 21 | X23: 0.1 | AA23: Argentina | AB23: Balneario La Concordia | AC23: 59877 | AD23: OK
A24: 1987v2.xlsx | B24: 1987 | D24: C-8701 | E24: 1987-11-01 | G24: 1987-11-23 | H24: s/d | I24: 80 | J24: 80 | K24: Balneario La Concordia (Km40) | L24: 82 | M24: sup.canal | N24: SHN | O24: Procon-agua | P24: Agua | R24: Hidrocarburos | S24: Hidrocarburos-totales | T24: µg/l | U24: = | V24: 25 | W24: 25 | X24: 0.1 | AA24: Canal | AB24: Canal | AC24: 59878 | AD24: OK
A25: 1987v2.xlsx | B25: 1987 | D25: C-8701 | E25: 1987-11-01 | G25: 1987-11-23 | H25: s/d | I25: 80 | J25: 80U | K25: Balneario La Concordia (Km40) | L25: 83 | M25: sup.m.urug. | N25: SHN | O25: Procon-agua | P25: Agua | R25: Hidrocarburos | S25: Hidrocarburos-totales | T25: µg/l | U25: = | V25: 16 | W25: 16 | X25: 0.1 | AA25: Uruguaya | AB25: Balneario La Concordia | AC25: 59879 | AD25: OK
A26: 1987v2.xlsx | B26: 1987 | D26: C-8701 | E26: 1987-11-01 | G26: 1987-11-23 | H26: s/d | I26: 80 | J26: 80L | K26: Balneario La Concordia (Km40) | L26: 81 | M26: sup.m.arg. | N26: SHN | O26: Procon-agua | P26: Agua | R26: Hidrocarburos | S26: SAAM | T26: mg LAS/l | U26: = | V26: 0.42 | W26: 0.42 | X26: 0.005 | AA26: Argentina | AB26: Balneario La Concordia | AC26: 59898 | AD26: OK
A27: 1987v2.xlsx | B27: 1987 | D27: C-8701 | E27: 1987-11-01 | G27: 1987-11-23 | H27: s/d | I27: 80 | J27: 80 | K27: Balneario La Concordia (Km40) | L27: 82 | M27: sup.canal | N27: SHN | O27: Procon-agua | P27: Agua | R27: Hidrocarburos | S27: SAAM | T27: mg LAS/l | U27: = | V27: 1.8 | W27: 1.8 | X27: 0.005 | AA27: Canal | AB27: Canal | AC27: 59899 | AD27: OK
A28: 1987v2.xlsx | B28: 1987 | D28: C-8701 | E28: 1987-11-01 | G28: 1987-11-23 | H28: s/d | I28: 80 | J28: 80U | K28: Balneario La Concordia (Km40) | L28: 83 | M28: sup.m.urug. | N28: SHN | O28: Procon-agua | P28: Agua | R28: Hidrocarburos | S28: SAAM | T28: mg LAS/l | U28: = | V28: 2.08 | W28: 2.08 | X28: 0.005 | AA28: Uruguaya | AB28: Balneario La Concordia | AC28: 59900 | AD28: OK
A29: 1987v2.xlsx | B29: 1987 | D29: C-8701 | E29: 1987-11-01 | G29: 1987-11-23 | H29: s/d | I29: 80 | J29: 80L | K29: Balneario La Concordia (Km40) | L29: 81 | M29: sup.m.arg. | O29: Procon-agua | P29: Agua | R29: In situ | S29: O.D. | T29: mg O2/l | U29: = | V29: 8.6 | W29: 8.6 | AA29: Argentina | AB29: Balneario La Concordia | AC29: 59449 | AD29: OK
A30: 1987v2.xlsx | B30: 1987 | D30: C-8701 | E30: 1987-11-01 | G30: 1987-11-23 | H30: s/d | I30: 80 | J30: 80 | K30: Balneario La Concordia (Km40) | L30: 82 | M30: sup.canal | O30: Procon-agua | P30: Agua | R30: In situ | S30: O.D. | T30: mg O2/l | U30: = | V30: 8.5 | W30: 8.5 | AA30: Canal | AB30: Canal | AC30: 59450 | AD30: OK
A31: 1987v2.xlsx | B31: 1987 | D31: C-8701 | E31: 1987-11-01 | G31: 1987-11-23 | H31: s/d | I31: 80 | J31: 80U | K31: Balneario La Concordia (Km40) | L31: 83 | M31: sup.m.urug. | O31: Procon-agua | P31: Agua | R31: In situ | S31: O.D. | T31: mg O2/l | U31: = | V31: 8.2 | W31: 8.2 | AA31: Uruguaya | AB31: Balneario La Concordia | AC31: 59451 | AD31: OK
A32: 1987v2.xlsx | B32: 1987 | D32: C-8701 | E32: 1987-11-01 | G32: 1987-11-23 | H32: s/d | I32: 80 | J32: 80L | K32: Balneario La Concordia (Km40) | L32: 81 | M32: sup.m.arg. | O32: Procon-agua | P32: Agua | R32: In situ | S32: pH | T32: UpH | V32: 7.4 | W32: 7.4 | AA32: Argentina | AB32: Balneario La Concordia | AC32: 59470 | AD32: OK
A33: 1987v2.xlsx | B33: 1987 | D33: C-8701 | E33: 1987-11-01 | G33: 1987-11-23 | H33: s/d | I33: 80 | J33: 80 | K33: Balneario La Concordia (Km40) | L33: 82 | M33: sup.canal | O33: Procon-agua | P33: Agua | R33: In situ | S33: pH | T33: UpH | V33: 7.19 | W33: 7.19 | AA33: Canal | AB33: Canal | AC33: 59471 | AD33: OK
A34: 1987v2.xlsx | B34: 1987 | D34: C-8701 | E34: 1987-11-01 | G34: 1987-11-23 | H34: s/d | I34: 80 | J34: 80U | K34: Balneario La Concordia (Km40) | L34: 83 | M34: sup.m.urug. | O34: Procon-agua | P34: Agua | R34: In situ | S34: pH | T34: UpH | V34: 7.43 | W34: =IF(V34="<LD",X34,IF(V34="<LC",Y34/2,V34)) -> 7.43 | AA34: Uruguaya | AB34: Balneario La Concordia | AC34: 59472 | AD34: OK
A35: 1987v2.xlsx | B35: 1987 | D35: C-8701 | E35: 1987-11-01 | G35: 1987-11-23 | H35: s/d | I35: 80 | J35: 80L | K35: Balneario La Concordia (Km40) | L35: 81 | M35: sup.m.arg. | O35: Procon-agua | P35: Agua | R35: In situ | S35: Temperatura | T35: ºC | U35: = | V35: 22 | W35: 22 | AA35: Argentina | AB35: Balneario La Concordia | AC35: 59486 | AD35: OK
A36: 1987v2.xlsx | B36: 1987 | D36: C-8701 | E36: 1987-11-01 | G36: 1987-11-23 | H36: s/d | I36: 80 | J36: 80 | K36: Balneario La Concordia (Km40) | L36: 82 | M36: sup.canal | O36: Procon-agua | P36: Agua | R36: In situ | S36: Temperatura | T36: ºC | U36: = | V36: 23 | W36: 23 | AA36: Canal | AB36: Canal | AC36: 59487 | AD36: OK
A37: 1987v2.xlsx | B37: 1987 | D37: C-8701 | E37: 1987-11-01 | G37: 1987-11-23 | H37: s/d | I37: 80 | J37: 80U | K37: Balneario La Concordia (Km40) | L37: 83 | M37: sup.m.urug. | O37: Procon-agua | P37: Agua | R37: In situ | S37: Temperatura | T37: ºC | U37: = | V37: 24 | W37: 24 | AA37: Uruguaya | AB37: Balneario La Concordia | AC37: 59488 | AD37: OK
A38: 1987v2.xlsx | B38: 1987 | D38: C-8701 | E38: 1987-11-01 | G38: 1987-11-23 | H38: s/d | I38: 80 | J38: 80L | K38: Balneario La Concordia (Km40) | L38: 81 | M38: sup.m.arg. | O38: Procon-agua | P38: Agua | R38: In situ | S38: Conductividad | T38: µS/cm | U38: = | V38: 50 | W38: 50 | AA38: Argentina | AB38: Balneario La Concordia | AC38: 59502 | AD38: OK
A39: 1987v2.xlsx | B39: 1987 | D39: C-8701 | E39: 1987-11-01 | G39: 1987-11-23 | H39: s/d | I39: 80 | J39: 80 | K39: Balneario La Concordia (Km40) | L39: 82 | M39: sup.canal | O39: Procon-agua | P39: Agua | R39: In situ | S39: Conductividad | T39: µS/cm | U39: = | V39: 55 | W39: 55 | AA39: Canal | AB39: Canal | AC39: 59503 | AD39: OK
A40: 1987v2.xlsx | B40: 1987 | D40: C-8701 | E40: 1987-11-01 | G40: 1987-11-23 | H40: s/d | I40: 80 | J40: 80U | K40: Balneario La Concordia (Km40) | L40: 83 | M40: sup.m.urug. | O40: Procon-agua | P40: Agua | R40: In situ | S40: Conductividad | T40: µS/cm | U40: = | V40: 80 | W40: 80 | AA40: Uruguaya | AB40: Balneario La Concordia | AC40: 59504 | AD40: OK
A41: 1987v2.xlsx | B41: 1987 | D41: C-8701 | E41: 1987-11-01 | G41: 1987-11-23 | H41: s/d | I41: 80 | J41: 80L | K41: Balneario La Concordia (Km40) | L41: 81 | M41: sup.m.arg. | O41: Procon-agua | P41: Agua | R41: In situ | S41: Potencial REDOX | T41: mV | V41: 144.5 | W41: 144.5 | AA41: Argentina | AB41: Balneario La Concordia | AC41: 59523 | AD41: OK
A42: 1987v2.xlsx | B42: 1987 | D42: C-8701 | E42: 1987-11-01 | G42: 1987-11-23 | H42: s/d | I42: 80 | J42: 80 | K42: Balneario La Concordia (Km40) | L42: 82 | M42: sup.canal | O42: Procon-agua | P42: Agua | R42: In situ | S42: Potencial REDOX | T42: mV | V42: 152.5 | W42: 152.5 | AA42: Canal | AB42: Canal | AC42: 59524 | AD42: OK
A43: 1987v2.xlsx | B43: 1987 | D43: C-8701 | E43: 1987-11-01 | G43: 1987-11-23 | H43: s/d | I43: 80 | J43: 80U | K43: Balneario La Concordia (Km40) | L43: 83 | M43: sup.m.urug. | O43: Procon-agua | P43: Agua | R43: In situ | S43: Potencial REDOX | T43: mV | V43: 149.2 | W43: 149.2 | AA43: Uruguaya | AB43: Balneario La Concordia | AC43: 59525 | AD43: OK
A44: 1987v2.xlsx | B44: 1987 | D44: C-8701 | E44: 1987-11-01 | G44: 1987-11-23 | H44: s/d | I44: 80 | J44: 80 | K44: Balneario La Concordia (Km40) | L44: 82 | M44: sup.canal | N44: DNH(DINAMA) | O44: Procon-agua | P44: Agua | R44: Iones | S44: Dureza de Magnesio | T44: mg CaCO3/l | V44: 4.5 | W44: 4.5 | AA44: Canal | AB44: Canal | AC44: 59689 | AD44: OK
A45: 1987v2.xlsx | B45: 1987 | D45: C-8701 | E45: 1987-11-01 | G45: 1987-11-23 | H45: s/d | I45: 80 | J45: 80U | K45: Balneario La Concordia (Km40) | L45: 83 | M45: sup.m.urug. | N45: DNH(DINAMA) | O45: Procon-agua | P45: Agua | R45: Iones | S45: Dureza de Magnesio | T45: mg CaCO3/l | V45: 5 | W45: 5 | AA45: Uruguaya | AB45: Balneario La Concordia | AC45: 59690 | AD45: OK
A46: 1987v2.xlsx | B46: 1987 | D46: C-8701 | E46: 1987-11-01 | G46: 1987-11-23 | H46: s/d | I46: 80 | J46: 80L | K46: Balneario La Concordia (Km40) | L46: 81 | M46: sup.m.arg. | N46: DNH(DINAMA) | O46: Procon-agua | P46: Agua | R46: Iones | S46: Dureza de Calcio | T46: mg CaCO3/l | V46: 20.5 | W46: 20.5 | AA46: Argentina | AB46: Balneario La Concordia | AC46: 59709 | AD46: OK
A47: 1987v2.xlsx | B47: 1987 | D47: C-8701 | E47: 1987-11-01 | G47: 1987-11-23 | H47: s/d | I47: 80 | J47: 80 | K47: Balneario La Concordia (Km40) | L47: 82 | M47: sup.canal | N47: DNH(DINAMA) | O47: Procon-agua | P47: Agua | R47: Iones | S47: Dureza de Calcio | T47: mg CaCO3/l | V47: 20.5 | W47: 20.5 | AA47: Canal | AB47: Canal | AC47: 59710 | AD47: OK
A48: 1987v2.xlsx | B48: 1987 | D48: C-8701 | E48: 1987-11-01 | G48: 1987-11-23 | H48: s/d | I48: 80 | J48: 80U | K48: Balneario La Concordia (Km40) | L48: 83 | M48: sup.m.urug. | N48: DNH(DINAMA) | O48: Procon-agua | P48: Agua | R48: Iones | S48: Dureza de Calcio | T48: mg CaCO3/l | V48: 23.5 | W48: 23.5 | AA48: Uruguaya | AB48: Balneario La Concordia | AC48: 59711 | AD48: OK
A49: 1987v2.xlsx | B49: 1987 | D49: C-8701 | E49: 1987-11-01 | G49: 1987-11-23 | H49: s/d | I49: 80 | J49: 80L | K49: Balneario La Concordia (Km40) | L49: 81 | M49: sup.m.arg. | N49: SOHMA | O49: Procon-agua | P49: Agua | R49: Iones | S49: Sulfato | T49: mg SO4/l | U49: = | V49: 8.1 | W49: 8.1 | X49: 1 | AA49: Argentina | AB49: Balneario La Concordia | AC49: 59730 | AD49: OK
A50: 1987v2.xlsx | B50: 1987 | D50: C-8701 | E50: 1987-11-01 | G50: 1987-11-23 | H50: s/d | I50: 80 | J50: 80 | K50: Balneario La Concordia (Km40) | L50: 82 | M50: sup.canal | N50: SOHMA | O50: Procon-agua | P50: Agua | R50: Iones | S50: Sulfato | T50: mg SO4/l | U50: = | V50: 7.6 | W50: 7.6 | X50: 1 | AA50: Canal | AB50: Canal | AC50: 59731 | AD50: OK
A51: 1987v2.xlsx | B51: 1987 | D51: C-8701 | E51: 1987-11-01 | G51: 1987-11-23 | H51: s/d | I51: 80 | J51: 80U | K51: Balneario La Concordia (Km40) | L51: 83 | M51: sup.m.urug. | N51: SOHMA | O51: Procon-agua | P51: Agua | R51: Iones | S51: Sulfato | T51: mg SO4/l | U51: = | V51: 6.5 | W51: 6.5 | X51: 1 | AA51: Uruguaya | AB51: Balneario La Concordia | AC51: 59732 | AD51: OK
A52: 1987v2.xlsx | B52: 1987 | D52: C-8701 | E52: 1987-11-01 | G52: 1987-11-23 | H52: s/d | I52: 80 | J52: 80L | K52: Balneario La Concordia (Km40) | L52: 81 | M52: sup.m.arg. | N52: DNH(DINAMA) | O52: Procon-agua | P52: Agua | R52: Iones | S52: Sodio | T52: mg Na/l | U52: = | V52: 3.3 | W52: 3.3 | AA52: Argentina | AB52: Balneario La Concordia | AC52: 59919 | AD52: OK
A53: 1987v2.xlsx | B53: 1987 | D53: C-8701 | E53: 1987-11-01 | G53: 1987-11-23 | H53: s/d | I53: 80 | J53: 80 | K53: Balneario La Concordia (Km40) | L53: 82 | M53: sup.canal | N53: DNH(DINAMA) | O53: Procon-agua | P53: Agua | R53: Iones | S53: Sodio | T53: mg Na/l | U53: = | V53: 3.3 | W53: 3.3 | AA53: Canal | AB53: Canal | AC53: 59920 | AD53: OK
A54: 1987v2.xlsx | B54: 1987 | D54: C-8701 | E54: 1987-11-01 | G54: 1987-11-23 | H54: s/d | I54: 80 | J54: 80U | K54: Balneario La Concordia (Km40) | L54: 83 | M54: sup.m.urug. | N54: DNH(DINAMA) | O54: Procon-agua | P54: Agua | R54: Iones | S54: Sodio | T54: mg Na/l | U54: = | V54: 5 | W54: 5 | AA54: Uruguaya | AB54: Balneario La Concordia | AC54: 59921 | AD54: OK
A55: 1987v2.xlsx | B55: 1987 | D55: C-8701 | E55: 1987-11-01 | G55: 1987-11-23 | H55: s/d | I55: 80 | J55: 80L | K55: Balneario La Concordia (Km40) | L55: 81 | M55: sup.m.arg. | N55: DNH(DINAMA) | O55: Procon-agua | P55: Agua | R55: Iones | S55: Alcalinidad total | T55: mEq/L | V55: 24.6 | W55: 24.6 | AA55: Argentina | AB55: Balneario La Concordia | AC55: 59628 | AD55: OK
A56: 1987v2.xlsx | B56: 1987 | D56: C-8701 | E56: 1987-11-01 | G56: 1987-11-23 | H56: s/d | I56: 80 | J56: 80 | K56: Balneario La Concordia (Km40) | L56: 82 | M56: sup.canal | N56: DNH(DINAMA) | O56: Procon-agua | P56: Agua | R56: Iones | S56: Alcalinidad total | T56: mEq/L | V56: 37.4 | W56: 37.4 | AA56: Canal | AB56: Canal | AC56: 59629 | AD56: OK
A57: 1987v2.xlsx | B57: 1987 | D57: C-8701 | E57: 1987-11-01 | G57: 1987-11-23 | H57: s/d | I57: 80 | J57: 80U | K57: Balneario La Concordia (Km40) | L57: 83 | M57: sup.m.urug. | N57: DNH(DINAMA) | O57: Procon-agua | P57: Agua | R57: Iones | S57: Alcalinidad total | T57: mEq/L | V57: 33.5 | W57: 33.5 | AA57: Uruguaya | AB57: Balneario La Concordia | AC57: 59630 | AD57: OK
A58: 1987v2.xlsx | B58: 1987 | D58: C-8701 | E58: 1987-11-01 | G58: 1987-11-23 | H58: s/d | I58: 80 | J58: 80L | K58: Balneario La Concordia (Km40) | L58: 81 | M58: sup.m.arg. | N58: DNH(DINAMA) | O58: Procon-agua | P58: Agua | R58: Iones | S58: Dureza Total | T58: mg CaCO3/l | V58: 28 | W58: 28 | AA58: Argentina | AB58: Balneario La Concordia | AC58: 59667 | AD58: OK
A59: 1987v2.xlsx | B59: 1987 | D59: C-8701 | E59: 1987-11-01 | G59: 1987-11-23 | H59: s/d | I59: 80 | J59: 80 | K59: Balneario La Concordia (Km40) | L59: 82 | M59: sup.canal | N59: DNH(DINAMA) | O59: Procon-agua | P59: Agua | R59: Iones | S59: Dureza Total | T59: mg CaCO3/l | V59: 25 | W59: 25 | AA59: Canal | AB59: Canal | AC59: 59668 | AD59: OK
A60: 1987v2.xlsx | B60: 1987 | D60: C-8701 | E60: 1987-11-01 | G60: 1987-11-23 | H60: s/d | I60: 80 | J60: 80U | K60: Balneario La Concordia (Km40) | L60: 83 | M60: sup.m.urug. | N60: DNH(DINAMA) | O60: Procon-agua | P60: Agua | R60: Iones | S60: Dureza Total | T60: mg CaCO3/l | V60: 28.5 | W60: 28.5 | AA60: Uruguaya | AB60: Balneario La Concordia | AC60: 59669 | AD60: OK
A61: 1987v2.xlsx | B61: 1987 | D61: C-8701 | E61: 1987-11-01 | G61: 1987-11-23 | H61: s/d | I61: 80 | J61: 80L | K61: Balneario La Concordia (Km40) | L61: 81 | M61: sup.m.arg. | N61: DNH(DINAMA) | O61: Procon-agua | P61: Agua | R61: Iones | S61: Dureza de Magnesio | T61: mg CaCO3/l | V61: 7.5 | W61: 7.5 | AA61: Argentina | AB61: Balneario La Concordia | AC61: 59688 | AD61: OK
A62: 1987v2.xlsx | B62: 1987 | D62: C-8701 | E62: 1987-11-01 | G62: 1987-11-23 | H62: s/d | I62: 80 | J62: 80L | K62: Balneario La Concordia (Km40) | L62: 81 | M62: sup.m.arg. | N62: SOHMA | O62: Procon-agua | P62: Agua | R62: Metales | S62: Cromo-total | T62: µg Cr/l | U62: = | V62: 3.5 | W62: 3.5 | X62: 0.5 | AA62: Argentina | AB62: Balneario La Concordia | AC62: 59940 | AD62: OK
A63: 1987v2.xlsx | B63: 1987 | D63: C-8701 | E63: 1987-11-01 | G63: 1987-11-23 | H63: s/d | I63: 80 | J63: 80 | K63: Balneario La Concordia (Km40) | L63: 82 | M63: sup.canal | N63: SOHMA | O63: Procon-agua | P63: Agua | R63: Metales | S63: Cromo-total | T63: µg Cr/l | U63: = | V63: 1.8 | W63: 1.8 | X63: 0.5 | AA63: Canal | AB63: Canal | AC63: 59941 | AD63: OK
A64: 1987v2.xlsx | B64: 1987 | D64: C-8701 | E64: 1987-11-01 | G64: 1987-11-23 | H64: s/d | I64: 80 | J64: 80U | K64: Balneario La Concordia (Km40) | L64: 83 | M64: sup.m.urug. | N64: SOHMA | O64: Procon-agua | P64: Agua | R64: Metales | S64: Cromo-total | T64: µg Cr/l | U64: = | V64: 1.8 | W64: 1.8 | X64: 0.5 | AA64: Uruguaya | AB64: Balneario La Concordia | AC64: 59942 | AD64: OK
A65: 1987v2.xlsx | B65: 1987 | D65: C-8701 | E65: 1987-11-01 | G65: 1987-11-23 | H65: s/d | I65: 80 | J65: 80L | K65: Balneario La Concordia (Km40) | L65: 81 | M65: sup.m.arg. | N65: SOHMA | O65: Procon-agua | P65: Agua | R65: Metales | S65: Hierro | T65: mg Fe/l | U65: = | V65: 0.56 | W65: 0.56 | X65: 0.025 | AA65: Argentina | AB65: Balneario La Concordia | AC65: 60003 | AD65: OK
A66: 1987v2.xlsx | B66: 1987 | D66: C-8701 | E66: 1987-11-01 | G66: 1987-11-23 | H66: s/d | I66: 80 | J66: 80 | K66: Balneario La Concordia (Km40) | L66: 82 | M66: sup.canal | N66: SOHMA | O66: Procon-agua | P66: Agua | R66: Metales | S66: Hierro | T66: mg Fe/l | U66: = | V66: 0.64 | W66: =IF(V66="<LD",X66,IF(V66="<LC",Y66/2,V66)) -> 0.64 | X66: 0.025 | AA66: Canal | AB66: Canal | AC66: 60004 | AD66: OK
A67: 1987v2.xlsx | B67: 1987 | D67: C-8701 | E67: 1987-11-01 | G67: 1987-11-23 | H67: s/d | I67: 80 | J67: 80U | K67: Balneario La Concordia (Km40) | L67: 83 | M67: sup.m.urug. | N67: SOHMA | O67: Procon-agua | P67: Agua | R67: Metales | S67: Hierro | T67: mg Fe/l | U67: = | V67: 0.5 | W67: 0.5 | X67: 0.025 | AA67: Uruguaya | AB67: Balneario La Concordia | AC67: 60005 | AD67: OK
A68: 1987v2.xlsx | B68: 1987 | D68: C-8701 | E68: 1987-11-01 | G68: 1987-11-23 | H68: s/d | I68: 80 | J68: 80L | K68: Balneario La Concordia (Km40) | L68: 81 | M68: sup.m.arg. | N68: SOHMA | O68: Procon-agua | P68: Agua | R68: Metales | S68: Manganeso | T68: µg Mn/l | U68: = | V68: 8 | W68: 8 | X68: 0.2 | AA68: Argentina | AB68: Balneario La Concordia | AC68: 60024 | AD68: OK
A69: 1987v2.xlsx | B69: 1987 | D69: C-8701 | E69: 1987-11-01 | G69: 1987-11-23 | H69: s/d | I69: 80 | J69: 80 | K69: Balneario La Concordia (Km40) | L69: 82 | M69: sup.canal | N69: SOHMA | O69: Procon-agua | P69: Agua | R69: Metales | S69: Manganeso | T69: µg Mn/l | U69: = | V69: 14 | W69: 14 | X69: 0.2 | AA69: Canal | AB69: Canal | AC69: 60025 | AD69: OK
A70: 1987v2.xlsx | B70: 1987 | D70: C-8701 | E70: 1987-11-01 | G70: 1987-11-23 | H70: s/d | I70: 80 | J70: 80U | K70: Balneario La Concordia (Km40) | L70: 83 | M70: sup.m.urug. | N70: SOHMA | O70: Procon-agua | P70: Agua | R70: Metales | S70: Manganeso | T70: µg Mn/l | U70: = | V70: 10 | W70: 10 | X70: 0.2 | AA70: Uruguaya | AB70: Balneario La Concordia | AC70: 60026 | AD70: OK
A71: 1987v2.xlsx | B71: 1987 | D71: C-8701 | E71: 1987-11-01 | G71: 1987-11-23 | H71: s/d | I71: 80 | J71: 80L | K71: Balneario La Concordia (Km40) | L71: 81 | M71: sup.m.arg. | N71: SOHMA | O71: Procon-agua | P71: Agua | R71: Metales | S71: Plomo | T71: µg Pb/l | U71: = | V71: 2 | W71: 2 | X71: 0.1 | AA71: Argentina | AB71: Balneario La Concordia | AC71: 59961 | AD71: OK
A72: 1987v2.xlsx | B72: 1987 | D72: C-8701 | E72: 1987-11-01 | G72: 1987-11-23 | H72: s/d | I72: 80 | J72: 80 | K72: Balneario La Concordia (Km40) | L72: 82 | M72: sup.canal | N72: SOHMA | O72: Procon-agua | P72: Agua | R72: Metales | S72: Plomo | T72: µg Pb/l | U72: = | V72: 4.5 | W72: 4.5 | X72: 0.1 | AA72: Canal | AB72: Canal | AC72: 59962 | AD72: OK
A73: 1987v2.xlsx | B73: 1987 | D73: C-8701 | E73: 1987-11-01 | G73: 1987-11-23 | H73: s/d | I73: 80 | J73: 80U | K73: Balneario La Concordia (Km40) | L73: 83 | M73: sup.m.urug. | N73: SOHMA | O73: Procon-agua | P73: Agua | R73: Metales | S73: Plomo | T73: µg Pb/l | U73: = | V73: 10.5 | W73: 10.5 | X73: 0.1 | AA73: Uruguaya | AB73: Balneario La Concordia | AC73: 59963 | AD73: OK
A74: 1987v2.xlsx | B74: 1987 | D74: C-8701 | E74: 1987-11-01 | G74: 1987-11-23 | H74: s/d | I74: 80 | J74: 80L | K74: Balneario La Concordia (Km40) | L74: 81 | M74: sup.m.arg. | N74: SOHMA | O74: Procon-agua | P74: Agua | R74: Metales | S74: Cadmio | T74: µg Cd/l | V74: 0.02 | W74: 0.02 | X74: 0.01 | AA74: Argentina | AB74: Balneario La Concordia | AC74: 59982 | AD74: OK
A75: 1987v2.xlsx | B75: 1987 | D75: C-8701 | E75: 1987-11-01 | G75: 1987-11-23 | H75: s/d | I75: 80 | J75: 80 | K75: Balneario La Concordia (Km40) | L75: 82 | M75: sup.canal | N75: SOHMA | O75: Procon-agua | P75: Agua | R75: Metales | S75: Cadmio | T75: µg Cd/l | V75: 0.35 | W75: 0.35 | X75: 0.01 | AA75: Canal | AB75: Canal | AC75: 59983 | AD75: OK
A76: 1987v2.xlsx | B76: 1987 | D76: C-8701 | E76: 1987-11-01 | G76: 1987-11-23 | H76: s/d | I76: 80 | J76: 80U | K76: Balneario La Concordia (Km40) | L76: 83 | M76: sup.m.urug. | N76: SOHMA | O76: Procon-agua | P76: Agua | R76: Metales | S76: Cadmio | T76: µg Cd/l | V76: 0.06 | W76: 0.06 | X76: 0.01 | AA76: Uruguaya | AB76: Balneario La Concordia | AC76: 59984 | AD76: OK
A77: 1987v2.xlsx | B77: 1987 | D77: C-8701 | E77: 1987-11-01 | G77: 1987-11-23 | H77: s/d | I77: 80 | J77: 80L | K77: Balneario La Concordia (Km40) | L77: 81 | M77: sup.m.arg. | N77: SOHMA | O77: Procon-agua | P77: Agua | R77: Metales | S77: Zinc | T77: µg Zn/l | U77: = | V77: 63 | W77: 63 | X77: 2 | AA77: Argentina | AB77: Balneario La Concordia | AC77: 60087 | AD77: OK
A78: 1987v2.xlsx | B78: 1987 | D78: C-8701 | E78: 1987-11-01 | G78: 1987-11-23 | H78: s/d | I78: 80 | J78: 80 | K78: Balneario La Concordia (Km40) | L78: 82 | M78: sup.canal | N78: SOHMA | O78: Procon-agua | P78: Agua | R78: Metales | S78: Zinc | T78: µg Zn/l | U78: = | V78: 63 | W78: 63 | X78: 2 | AA78: Canal | AB78: Canal | AC78: 60088 | AD78: OK
A79: 1987v2.xlsx | B79: 1987 | D79: C-8701 | E79: 1987-11-01 | G79: 1987-11-23 | H79: s/d | I79: 80 | J79: 80U | K79: Balneario La Concordia (Km40) | L79: 83 | M79: sup.m.urug. | N79: SOHMA | O79: Procon-agua | P79: Agua | R79: Metales | S79: Zinc | T79: µg Zn/l | U79: = | V79: 47 | W79: 47 | X79: 2 | AA79: Uruguaya | AB79: Balneario La Concordia | AC79: 60089 | AD79: OK
A80: 1987v2.xlsx | B80: 1987 | D80: C-8701 | E80: 1987-11-01 | G80: 1987-11-23 | H80: s/d | I80: 80 | J80: 80L | K80: Balneario La Concordia (Km40) | L80: 81 | M80: sup.m.arg. | N80: SOHMA | O80: Procon-agua | P80: Agua | R80: Metales | S80: Mercurio | T80: µg Hg/l | U80: < | V80: <LD | W80: 0.002 | X80: 0.002 | AA80: Argentina | AB80: Balneario La Concordia | AC80: 60045 | AD80: OK
A81: 1987v2.xlsx | B81: 1987 | D81: C-8701 | E81: 1987-11-01 | G81: 1987-11-23 | H81: s/d | I81: 80 | J81: 80 | K81: Balneario La Concordia (Km40) | L81: 82 | M81: sup.canal | N81: SOHMA | O81: Procon-agua | P81: Agua | R81: Metales | S81: Mercurio | T81: µg Hg/l | U81: < | V81: <LD | W81: 0.002 | X81: 0.002 | AA81: Canal | AB81: Canal | AC81: 60046 | AD81: OK
A82: 1987v2.xlsx | B82: 1987 | D82: C-8701 | E82: 1987-11-01 | G82: 1987-11-23 | H82: s/d | I82: 80 | J82: 80U | K82: Balneario La Concordia (Km40) | L82: 83 | M82: sup.m.urug. | N82: SOHMA | O82: Procon-agua | P82: Agua | R82: Metales | S82: Mercurio | T82: µg Hg/l | U82: < | V82: <LD | W82: 0.002 | X82: 0.002 | AA82: Uruguaya | AB82: Balneario La Concordia | AC82: 60047 | AD82: OK
A83: 1987v2.xlsx | B83: 1987 | D83: C-8701 | E83: 1987-11-01 | G83: 1987-11-23 | H83: s/d | I83: 80 | J83: 80L | K83: Balneario La Concordia (Km40) | L83: 81 | M83: sup.m.arg. | N83: SOHMA | O83: Procon-agua | P83: Agua | R83: Metales | S83: Cobre | T83: µg Cu/l | U83: = | V83: 10.8 | W83: =IF(V83="<LD",X83,IF(V83="<LC",Y83/2,V83)) -> 10.8 | X83: 0.5 | AA83: Argentina | AB83: Balneario La Concordia | AC83: 60066 | AD83: OK
A84: 1987v2.xlsx | B84: 1987 | D84: C-8701 | E84: 1987-11-01 | G84: 1987-11-23 | H84: s/d | I84: 80 | J84: 80 | K84: Balneario La Concordia (Km40) | L84: 82 | M84: sup.canal | N84: SOHMA | O84: Procon-agua | P84: Agua | R84: Metales | S84: Cobre | T84: µg Cu/l | U84: = | V84: 7.2 | W84: 7.2 | X84: 0.5 | AA84: Canal | AB84: Canal | AC84: 60067 | AD84: OK
A85: 1987v2.xlsx | B85: 1987 | D85: C-8701 | E85: 1987-11-01 | G85: 1987-11-23 | H85: s/d | I85: 80 | J85: 80U | K85: Balneario La Concordia (Km40) | L85: 83 | M85: sup.m.urug. | N85: SOHMA | O85: Procon-agua | P85: Agua | R85: Metales | S85: Cobre | T85: µg Cu/l | U85: = | V85: 8.4 | W85: 8.4 | X85: 0.5 | AA85: Uruguaya | AB85: Balneario La Concordia | AC85: 60068 | AD85: OK
A86: 1987v2.xlsx | B86: 1987 | D86: C-8701 | E86: 1987-11-01 | G86: 1987-11-23 | H86: s/d | I86: 80 | J86: 80L | K86: Balneario La Concordia (Km40) | L86: 81 | M86: sup.m.arg. | N86: SHN | O86: Procon-agua | P86: Agua | R86: Nutrientes | S86: Nitrato | T86: mg N-NO3/l | U86: = | V86: 0.66 | W86: 0.66 | AA86: Argentina | AB86: Balneario La Concordia | AC86: 59761 | AD86: OK
A87: 1987v2.xlsx | B87: 1987 | D87: C-8701 | E87: 1987-11-01 | G87: 1987-11-23 | H87: s/d | I87: 80 | J87: 80 | K87: Balneario La Concordia (Km40) | L87: 82 | M87: sup.canal | N87: SHN | O87: Procon-agua | P87: Agua | R87: Nutrientes | S87: Nitrato | T87: mg N-NO3/l | U87: = | V87: 0.63 | W87: 0.63 | AA87: Canal | AB87: Canal | AC87: 59762 | AD87: OK
A88: 1987v2.xlsx | B88: 1987 | D88: C-8701 | E88: 1987-11-01 | G88: 1987-11-23 | H88: s/d | I88: 80 | J88: 80U | K88: Balneario La Concordia (Km40) | L88: 83 | M88: sup.m.urug. | N88: SHN | O88: Procon-agua | P88: Agua | R88: Nutrientes | S88: Nitrato | T88: mg N-NO3/l | U88: = | V88: 0.51 | W88: 0.51 | AA88: Uruguaya | AB88: Balneario La Concordia | AC88: 59763 | AD88: OK
A89: 1987v2.xlsx | B89: 1987 | D89: C-8701 | E89: 1987-11-01 | G89: 1987-11-23 | H89: s/d | I89: 80 | J89: 80L | K89: Balneario La Concordia (Km40) | L89: 81 | M89: sup.m.arg. | N89: SHN | O89: Procon-agua | P89: Agua | R89: Nutrientes | S89: Nitrito | T89: mg N-NO2/l | V89: 0.003 | W89: 0.003 | AA89: Argentina | AB89: Balneario La Concordia | AC89: 59782 | AD89: OK
A90: 1987v2.xlsx | B90: 1987 | D90: C-8701 | E90: 1987-11-01 | G90: 1987-11-23 | H90: s/d | I90: 80 | J90: 80 | K90: Balneario La Concordia (Km40) | L90: 82 | M90: sup.canal | N90: SHN | O90: Procon-agua | P90: Agua | R90: Nutrientes | S90: Nitrito | T90: mg N-NO2/l | V90: 0.004 | W90: 0.004 | AA90: Canal | AB90: Canal | AC90: 59783 | AD90: OK
A91: 1987v2.xlsx | B91: 1987 | D91: C-8701 | E91: 1987-11-01 | G91: 1987-11-23 | H91: s/d | I91: 80 | J91: 80U | K91: Balneario La Concordia (Km40) | L91: 83 | M91: sup.m.urug. | N91: SHN | O91: Procon-agua | P91: Agua | R91: Nutrientes | S91: Nitrito | T91: mg N-NO2/l | V91: 0.004 | W91: 0.004 | AA91: Uruguaya | AB91: Balneario La Concordia | AC91: 59784 | AD91: OK
A92: 1987v2.xlsx | B92: 1987 | D92: C-8701 | E92: 1987-11-01 | G92: 1987-11-23 | H92: s/d | I92: 80 | J92: 80L | K92: Balneario La Concordia (Km40) | L92: 81 | M92: sup.m.arg. | N92: SHN | O92: Procon-agua | P92: Agua | R92: Nutrientes | S92: Nitrogeno org. total (NTK) | T92: mg NTK/l | U92: = | V92: 0.11 | W92: 0.11 | AA92: Argentina | AB92: Balneario La Concordia | AC92: 59801 | AD92: OK
A93: 1987v2.xlsx | B93: 1987 | D93: C-8701 | E93: 1987-11-01 | G93: 1987-11-23 | H93: s/d | I93: 80 | J93: 80 | K93: Balneario La Concordia (Km40) | L93: 82 | M93: sup.canal | N93: SHN | O93: Procon-agua | P93: Agua | R93: Nutrientes | S93: Nitrogeno org. total (NTK) | T93: mg NTK/l | U93: = | V93: 0.24 | W93: 0.24 | AA93: Canal | AB93: Canal | AC93: 59802 | AD93: OK
A94: 1987v2.xlsx | B94: 1987 | D94: C-8701 | E94: 1987-11-01 | G94: 1987-11-23 | H94: s/d | I94: 80 | J94: 80L | K94: Balneario La Concordia (Km40) | L94: 81 | M94: sup.m.arg. | N94: SHN | O94: Procon-agua | P94: Agua | R94: Nutrientes | S94: Fosfato | T94: mg P-PO4/l | U94: = | V94: 0.053 | W94: 0.053 | X94: 0.01 | AA94: Argentina | AB94: Balneario La Concordia | AC94: 59821 | AD94: OK
A95: 1987v2.xlsx | B95: 1987 | D95: C-8701 | E95: 1987-11-01 | G95: 1987-11-23 | H95: s/d | I95: 80 | J95: 80 | K95: Balneario La Concordia (Km40) | L95: 82 | M95: sup.canal | N95: SHN | O95: Procon-agua | P95: Agua | R95: Nutrientes | S95: Fosfato | T95: mg P-PO4/l | U95: = | V95: 0.019 | W95: 0.019 | X95: 0.01 | AA95: Canal | AB95: Canal | AC95: 59822 | AD95: OK
A96: 1987v2.xlsx | B96: 1987 | D96: C-8701 | E96: 1987-11-01 | G96: 1987-11-23 | H96: s/d | I96: 80 | J96: 80U | K96: Balneario La Concordia (Km40) | L96: 83 | M96: sup.m.urug. | N96: SHN | O96: Procon-agua | P96: Agua | R96: Nutrientes | S96: Fosfato | T96: mg P-PO4/l | U96: = | V96: 0.017 | W96: 0.017 | X96: 0.01 | AA96: Uruguaya | AB96: Balneario La Concordia | AC96: 59823 | AD96: OK
A97: 1987v2.xlsx | B97: 1987 | D97: C-8701 | E97: 1987-11-01 | G97: 1987-11-23 | H97: s/d | I97: 80 | J97: 80L | K97: Balneario La Concordia (Km40) | L97: 81 | M97: sup.m.arg. | N97: SHN | O97: Procon-agua | P97: Agua | R97: Nutrientes | S97: Fosforo total | T97: mg P/l | U97: = | V97: 0.06 | W97: 0.06 | X97: 0.01 | AA97: Argentina | AB97: Balneario La Concordia | AC97: 59841 | AD97: OK
A98: 1987v2.xlsx | B98: 1987 | D98: C-8701 | E98: 1987-11-01 | G98: 1987-11-23 | H98: s/d | I98: 80 | J98: 80 | K98: Balneario La Concordia (Km40) | L98: 82 | M98: sup.canal | N98: SHN | O98: Procon-agua | P98: Agua | R98: Nutrientes | S98: Fosforo total | T98: mg P/l | U98: = | V98: 0.11 | W98: 0.11 | X98: 0.01 | AA98: Canal | AB98: Canal | AC98: 59842 | AD98: OK
A99: 1987v2.xlsx | B99: 1987 | D99: C-8701 | E99: 1987-11-01 | G99: 1987-11-23 | H99: s/d | I99: 80 | J99: 80U | K99: Balneario La Concordia (Km40) | L99: 83 | M99: sup.m.urug. | N99: SHN | O99: Procon-agua | P99: Agua | R99: Nutrientes | S99: Fosforo total | T99: mg P/l | U99: = | V99: 0.05 | W99: 0.05 | X99: 0.01 | AA99: Uruguaya | AB99: Balneario La Concordia | AC99: 59843 | AD99: OK
A100: 1987v2.xlsx | B100: 1987 | D100: C-8701 | E100: 1987-11-01 | G100: 1987-11-23 | H100: s/d | I100: 80 | J100: 80L | K100: Balneario La Concordia (Km40) | L100: 81 | M100: sup.m.arg. | N100: SHN | O100: Procon-agua | P100: Agua | R100: Pigmentos | S100: Clorofila-a | T100: µg Clorofila-a/l | V100: 1.22 | W100: 1.22 | AA100: Argentina | AB100: Balneario La Concordia | AC100: 59862 | AD100: OK
A101: 1987v2.xlsx | B101: 1987 | D101: C-8701 | E101: 1987-11-01 | G101: 1987-11-23 | H101: s/d | I101: 80 | J101: 80 | K101: Balneario La Concordia (Km40) | L101: 82 | M101: sup.canal | N101: SHN | O101: Procon-agua | P101: Agua | R101: Pigmentos | S101: Clorofila-a | T101: µg Clorofila-a/l | V101: 0.31 | W101: 0.31 | AA101: Canal | AB101: Canal | AC101: 59863 | AD101: OK
A102: 1987v2.xlsx | B102: 1987 | D102: C-8701 | E102: 1987-11-01 | G102: 1987-11-23 | H102: s/d | I102: 80 | J102: 80U | K102: Balneario La Concordia (Km40) | L102: 83 | M102: sup.m.urug. | N102: SHN | O102: Procon-agua | P102: Agua | R102: Pigmentos | S102: Clorofila-a | T102: µg Clorofila-a/l | V102: 1.86 | W102: 1.86 | AA102: Uruguaya | AB102: Balneario La Concordia | AC102: 59864 | AD102: OK
A103: 1987v2.xlsx | B103: 1987 | D103: C-8701 | E103: 1987-11-01 | G103: 1987-11-23 | H103: s/d | I103: 80 | J103: 80L | K103: Balneario La Concordia (Km40) | L103: 81 | M103: sup.m.arg. | N103: DNH(DINAMA) | O103: Procon-agua | P103: Agua | S103: DBO5 | T103: mg O2/l | U103: < | V103: <LD | W103: 5 | X103: 5 | AA103: Argentina | AB103: Balneario La Concordia | AC103: 59544 | AD103: OK
A104: 1987v2.xlsx | B104: 1987 | D104: C-8701 | E104: 1987-11-01 | G104: 1987-11-23 | H104: s/d | I104: 80 | J104: 80 | K104: Balneario La Concordia (Km40) | L104: 82 | M104: sup.canal | N104: DNH(DINAMA) | O104: Procon-agua | P104: Agua | S104: DBO5 | T104: mg O2/l | U104: < | V104: <LD | W104: 5 | X104: 5 | AA104: Canal | AB104: Canal | AC104: 59545 | AD104: OK
A105: 1987v2.xlsx | B105: 1987 | D105: C-8701 | E105: 1987-11-01 | G105: 1987-11-23 | H105: s/d | I105: 80 | J105: 80U | K105: Balneario La Concordia (Km40) | L105: 83 | M105: sup.m.urug. | N105: DNH(DINAMA) | O105: Procon-agua | P105: Agua | S105: DBO5 | T105: mg O2/l | U105: < | V105: <LD | W105: 5 | X105: 5 | AA105: Uruguaya | AB105: Balneario La Concordia | AC105: 59546 | AD105: OK
A106: 1987v2.xlsx | B106: 1987 | D106: C-8701 | E106: 1987-11-01 | G106: 1987-11-23 | H106: s/d | I106: 80 | J106: 80L | K106: Balneario La Concordia (Km40) | L106: 81 | M106: sup.m.arg. | N106: DNH(DINAMA) | O106: Procon-agua | P106: Agua | S106: DQO | T106: mg O2/l | V106: 15 | W106: 15 | AA106: Argentina | AB106: Balneario La Concordia | AC106: 59565 | AD106: OK
A107: 1987v2.xlsx | B107: 1987 | D107: C-8701 | E107: 1987-11-01 | G107: 1987-11-23 | H107: s/d | I107: 80 | J107: 80 | K107: Balneario La Concordia (Km40) | L107: 82 | M107: sup.canal | N107: DNH(DINAMA) | O107: Procon-agua | P107: Agua | S107: DQO | T107: mg O2/l | V107: 24 | W107: 24 | AA107: Canal | AB107: Canal | AC107: 59566 | AD107: OK
A108: 1987v2.xlsx | B108: 1987 | D108: C-8701 | E108: 1987-11-01 | G108: 1987-11-23 | H108: s/d | I108: 80 | J108: 80U | K108: Balneario La Concordia (Km40) | L108: 83 | M108: sup.m.urug. | N108: DNH(DINAMA) | O108: Procon-agua | P108: Agua | S108: DQO | T108: mg O2/l | V108: 15 | W108: 15 | AA108: Uruguaya | AB108: Balneario La Concordia | AC108: 59567 | AD108: OK
A109: 1987v2.xlsx | B109: 1987 | D109: C-8701 | E109: 1987-11-01 | G109: 1987-11-24 | H109: s/d | I109: 50 | J109: 50C | K109: Colón-Paysandú | L109: 51 | M109: sup.m.arg. | N109: DNH(DINAMA) | O109: Procon-agua | P109: Agua | R109: Bacterias | S109: Coliformes totales | T109: UFC/100ml | V109: 3000 | W109: 3000 | AA109: Argentina | AB109: Colón | AC109: 59581 | AD109: OK
A110: 1987v2.xlsx | B110: 1987 | D110: C-8701 | E110: 1987-11-01 | G110: 1987-11-24 | H110: s/d | I110: 60 | J110: 60C | K110: Concepción del Uruguay | L110: 61 | M110: sup.m.arg. | N110: DNH(DINAMA) | O110: Procon-agua | P110: Agua | R110: Bacterias | S110: Coliformes totales | T110: UFC/100ml | V110: 200 | W110: 200 | AA110: Argentina | AB110: Concepción del Uruguay | AC110: 59582 | AD110: OK
A111: 1987v2.xlsx | B111: 1987 | D111: C-8701 | E111: 1987-11-01 | G111: 1987-11-24 | H111: s/d | I111: 60 | J111: 60 | K111: Concepción del Uruguay | L111: 62 | M111: sup.canal | N111: DNH(DINAMA) | O111: Procon-agua | P111: Agua | R111: Bacterias | S111: Coliformes totales | T111: UFC/100ml | V111: 2000 | W111: 2000 | AA111: Canal | AB111: Canal | AC111: 59583 | AD111: OK
A112: 1987v2.xlsx | B112: 1987 | D112: C-8701 | E112: 1987-11-01 | G112: 1987-11-24 | H112: s/d | I112: 70 | J112: 70G | K112: Fray Bentos-Gualeguaychú desemb. (km 93)- Rio Negro | L112: 71 | M112: sup.m.arg. | N112: DNH(DINAMA) | O112: Procon-agua | P112: Agua | R112: Bacterias | S112: Coliformes totales | T112: UFC/100ml | V112: 150 | W112: 150 | AA112: Argentina | AB112: Gualeguaychú | AC112: 59584 | AD112: OK
A113: 1987v2.xlsx | B113: 1987 | D113: C-8701 | E113: 1987-11-01 | G113: 1987-11-24 | H113: s/d | I113: 70 | J113: 70 | K113: Fray Bentos-Gualeguaychú desemb. (km 93)- Rio Negro | L113: 72 | M113: sup.canal | N113: DNH(DINAMA) | O113: Procon-agua | P113: Agua | R113: Bacterias | S113: Coliformes totales | T113: UFC/100ml | V113: 200 | W113: 200 | AA113: Canal | AB113: Canal | AC113: 59585 | AD113: OK
A114: 1987v2.xlsx | B114: 1987 | D114: C-8701 | E114: 1987-11-01 | G114: 1987-11-24 | H114: s/d | I114: 50 | J114: 50C | K114: Colón-Paysandú | L114: 51 | M114: sup.m.arg. | N114: DNH(DINAMA) | O114: Procon-agua | P114: Agua | R114: Bacterias | S114: Coliformes termotolerantes | T114: UFC/100ml | V114: 150 | W114: 150 | AA114: Argentina | AB114: Colón | AC114: 59602 | AD114: OK
A115: 1987v2.xlsx | B115: 1987 | D115: C-8701 | E115: 1987-11-01 | G115: 1987-11-24 | H115: s/d | I115: 60 | J115: 60C | K115: Concepción del Uruguay | L115: 61 | M115: sup.m.arg. | N115: DNH(DINAMA) | O115: Procon-agua | P115: Agua | R115: Bacterias | S115: Coliformes termotolerantes | T115: UFC/100ml | V115: 70 | W115: =IF(V115="<LD",X115,IF(V115="<LC",Y115/2,V115)) -> 70 | AA115: Argentina | AB115: Concepción del Uruguay | AC115: 59603 | AD115: OK
A116: 1987v2.xlsx | B116: 1987 | D116: C-8701 | E116: 1987-11-01 | G116: 1987-11-24 | H116: s/d | I116: 60 | J116: 60 | K116: Concepción del Uruguay | L116: 62 | M116: sup.canal | N116: DNH(DINAMA) | O116: Procon-agua | P116: Agua | R116: Bacterias | S116: Coliformes termotolerantes | T116: UFC/100ml | V116: 100 | W116: 100 | AA116: Canal | AB116: Canal | AC116: 59604 | AD116: OK
A117: 1987v2.xlsx | B117: 1987 | D117: C-8701 | E117: 1987-11-01 | G117: 1987-11-24 | H117: s/d | I117: 70 | J117: 70G | K117: Fray Bentos-Gualeguaychú desemb. (km 93)- Rio Negro | L117: 71 | M117: sup.m.arg. | N117: DNH(DINAMA) | O117: Procon-agua | P117: Agua | R117: Bacterias | S117: Coliformes termotolerantes | T117: UFC/100ml | V117: 50 | W117: 50 | AA117: Argentina | AB117: Gualeguaychú | AC117: 59605 | AD117: OK
A118: 1987v2.xlsx | B118: 1987 | D118: C-8701 | E118: 1987-11-01 | G118: 1987-11-24 | H118: s/d | I118: 70 | J118: 70 | K118: Fray Bentos-Gualeguaychú desemb. (km 93)- Rio Negro | L118: 72 | M118: sup.canal | N118: DNH(DINAMA) | O118: Procon-agua | P118: Agua | R118: Bacterias | S118: Coliformes termotolerantes | T118: UFC/100ml | V118: 60 | W118: 60 | AA118: Canal | AB118: Canal | AC118: 59606 | AD118: OK
A119: 1987v2.xlsx | B119: 1987 | D119: C-8701 | E119: 1987-11-01 | G119: 1987-11-24 | H119: s/d | I119: 60 | J119: 60C | K119: Concepción del Uruguay | L119: 61 | M119: sup.m.arg. | N119: SOHMA | O119: Procon-agua | P119: Agua | R119: Biocidas | S119: alfa-H.C.H. | T119: ng/l | U119: = | V119: 1.5 | W119: 1.5 | X119: 0.9 | AA119: Argentina | AB119: Concepción del Uruguay | AC119: 60094 | AD119: OK
A120: 1987v2.xlsx | B120: 1987 | D120: C-8701 | E120: 1987-11-01 | G120: 1987-11-24 | H120: s/d | I120: 60 | J120: 60 | K120: Concepción del Uruguay | L120: 62 | M120: sup.canal | N120: SOHMA | O120: Procon-agua | P120: Agua | R120: Biocidas | S120: alfa-H.C.H. | T120: ng/l | U120: = | V120: 1.7 | W120: 1.7 | X120: 0.9 | AA120: Canal | AB120: Canal | AC120: 60095 | AD120: OK
A121: 1987v2.xlsx | B121: 1987 | D121: C-8701 | E121: 1987-11-01 | G121: 1987-11-24 | H121: s/d | I121: 70 | J121: 70G | K121: Fray Bentos-Gualeguaychú desemb. (km 93)- Rio Negro | L121: 71 | M121: sup.m.arg. | N121: SOHMA | O121: Procon-agua | P121: Agua | R121: Biocidas | S121: alfa-H.C.H. | T121: ng/l | U121: < | V121: <LD | W121: 0.9 | X121: 0.9 | AA121: Argentina | AB121: Gualeguaychú | AC121: 60096 | AD121: OK
A122: 1987v2.xlsx | B122: 1987 | D122: C-8701 | E122: 1987-11-01 | G122: 1987-11-24 | H122: s/d | I122: 70 | J122: 70 | K122: Fray Bentos-Gualeguaychú desemb. (km 93)- Rio Negro | L122: 72 | M122: sup.canal | N122: SOHMA | O122: Procon-agua | P122: Agua | R122: Biocidas | S122: alfa-H.C.H. | T122: ng/l | U122: < | V122: <LD | W122: 0.9 | X122: 0.9 | AA122: Canal | AB122: Canal | AC122: 60097 | AD122: OK
A123: 1987v2.xlsx | B123: 1987 | D123: C-8701 | E123: 1987-11-01 | G123: 1987-11-24 | H123: s/d | I123: 60 | J123: 60C | K123: Concepción del Uruguay | L123: 61 | M123: sup.m.arg. | N123: SOHMA | O123: Procon-agua | P123: Agua | R123: Biocidas | S123: beta-H.C.H. | T123: ng/l | U123: < | V123: <LD | W123: 1 | X123: 1 | AA123: Argentina | AB123: Concepción del Uruguay | AC123: 60102 | AD123: OK
A124: 1987v2.xlsx | B124: 1987 | D124: C-8701 | E124: 1987-11-01 | G124: 1987-11-24 | H124: s/d | I124: 60 | J124: 60 | K124: Concepción del Uruguay | L124: 62 | M124: sup.canal | N124: SOHMA | O124: Procon-agua | P124: Agua | R124: Biocidas | S124: beta-H.C.H. | T124: ng/l | U124: < | V124: <LD | W124: 1 | X124: 1 | AA124: Canal | AB124: Canal | AC124: 60103 | AD124: OK
A125: 1987v2.xlsx | B125: 1987 | D125: C-8701 | E125: 1987-11-01 | G125: 1987-11-24 | H125: s/d | I125: 70 | J125: 70G | K125: Fray Bentos-Gualeguaychú desemb. (km 93)- Rio Negro | L125: 71 | M125: sup.m.arg. | N125: SOHMA | O125: Procon-agua | P125: Agua | R125: Biocidas | S125: beta-H.C.H. | T125: ng/l | U125: < | V125: <LD | W125: 1 | X125: 1 | AA125: Argentina | AB125: Gualeguaychú | AC125: 60104 | AD125: OK
A126: 1987v2.xlsx | B126: 1987 | D126: C-8701 | E126: 1987-11-01 | G126: 1987-11-24 | H126: s/d | I126: 70 | J126: 70 | K126: Fray Bentos-Gualeguaychú desemb. (km 93)- Rio Negro | L126: 72 | M126: sup.canal | N126: SOHMA | O126: Procon-agua | P126: Agua | R126: Biocidas | S126: beta-H.C.H. | T126: ng/l | U126: < | V126: <LD | W126: 1 | X126: 1 | AA126: Canal | AB126: Canal | AC126: 60105 | AD126: OK
A127: 1987v2.xlsx | B127: 1987 | D127: C-8701 | E127: 1987-11-01 | G127: 1987-11-24 | H127: s/d | I127: 60 | J127: 60C | K127: Concepción del Uruguay | L127: 61 | M127: sup.m.arg. | N127: SOHMA | O127: Procon-agua | P127: Agua | R127: Biocidas | S127: Heptacloro | T127: ng/l | U127: < | V127: <LD | W127: 0.2 | X127: 0.2 | AA127: Argentina | AB127: Concepción del Uruguay | AC127: 60110 | AD127: OK
A128: 1987v2.xlsx | B128: 1987 | D128: C-8701 | E128: 1987-11-01 | G128: 1987-11-24 | H128: s/d | I128: 60 | J128: 60 | K128: Concepción del Uruguay | L128: 62 | M128: sup.canal | N128: SOHMA | O128: Procon-agua | P128: Agua | R128: Biocidas | S128: Heptacloro | T128: ng/l | U128: < | V128: <LD | W128: 0.2 | X128: 0.2 | AA128: Canal | AB128: Canal | AC128: 60111 | AD128: OK
A129: 1987v2.xlsx | B129: 1987 | D129: C-8701 | E129: 1987-11-01 | G129: 1987-11-24 | H129: s/d | I129: 70 | J129: 70G | K129: Fray Bentos-Gualeguaychú desemb. (km 93)- Rio Negro | L129: 71 | M129: sup.m.arg. | N129: SOHMA | O129: Procon-agua | P129: Agua | R129: Biocidas | S129: Heptacloro | T129: ng/l | U129: < | V129: <LD | W129: 0.2 | X129: 0.2 | AA129: Argentina | AB129: Gualeguaychú | AC129: 60112 | AD129: OK
A130: 1987v2.xlsx | B130: 1987 | D130: C-8701 | E130: 1987-11-01 | G130: 1987-11-24 | H130: s/d | I130: 70 | J130: 70 | K130: Fray Bentos-Gualeguaychú desemb. (km 93)- Rio Negro | L130: 72 | M130: sup.canal | N130: SOHMA | O130: Procon-agua | P130: Agua | R130: Biocidas | S130: Heptacloro | T130: ng/l | U130: < | V130: <LD | W130: 0.2 | X130: 0.2 | AA130: Canal | AB130: Canal | AC130: 60113 | AD130: OK
A131: 1987v2.xlsx | B131: 1987 | D131: C-8701 | E131: 1987-11-01 | G131: 1987-11-24 | H131: s/d | I131: 60 | J131: 60C | K131: Concepción del Uruguay | L131: 61 | M131: sup.m.arg. | N131: SOHMA | O131: Procon-agua | P131: Agua | R131: Biocidas | S131: Heptacloro-epoxi | T131: ng/l | U131: < | V131: <LD | W131: 0.7 | X131: 0.7 | AA131: Argentina | AB131: Concepción del Uruguay | AC131: 60118 | AD131: OK
A132: 1987v2.xlsx | B132: 1987 | D132: C-8701 | E132: 1987-11-01 | G132: 1987-11-24 | H132: s/d | I132: 60 | J132: 60 | K132: Concepción del Uruguay | L132: 62 | M132: sup.canal | N132: SOHMA | O132: Procon-agua | P132: Agua | R132: Biocidas | S132: Heptacloro-epoxi | T132: ng/l | U132: < | V132: <LD | W132: 0.7 | X132: 0.7 | AA132: Canal | AB132: Canal | AC132: 60119 | AD132: OK
A133: 1987v2.xlsx | B133: 1987 | D133: C-8701 | E133: 1987-11-01 | G133: 1987-11-24 | H133: s/d | I133: 70 | J133: 70G | K133: Fray Bentos-Gualeguaychú desemb. (km 93)- Rio Negro | L133: 71 | M133: sup.m.arg. | N133: SOHMA | O133: Procon-agua | P133: Agua | R133: Biocidas | S133: Heptacloro-epoxi | T133: ng/l | U133: < | V133: <LD | W133: 0.7 | X133: 0.7 | AA133: Argentina | AB133: Gualeguaychú | AC133: 60120 | AD133: OK
A134: 1987v2.xlsx | B134: 1987 | D134: C-8701 | E134: 1987-11-01 | G134: 1987-11-24 | H134: s/d | I134: 70 | J134: 70 | K134: Fray Bentos-Gualeguaychú desemb. (km 93)- Rio Negro | L134: 72 | M134: sup.canal | N134: SOHMA | O134: Procon-agua | P134: Agua | R134: Biocidas | S134: Heptacloro-epoxi | T134: ng/l | U134: < | V134: <LD | W134: 0.7 | X134: 0.7 | AA134: Canal | AB134: Canal | AC134: 60121 | AD134: OK
A135: 1987v2.xlsx | B135: 1987 | D135: C-8701 | E135: 1987-11-01 | G135: 1987-11-24 | H135: s/d | I135: 60 | J135: 60C | K135: Concepción del Uruguay | L135: 61 | M135: sup.m.arg. | N135: SOHMA | O135: Procon-agua | P135: Agua | R135: Biocidas | S135: Aldrin | T135: ng/l | U135: < | V135: <LD | W135: 0.8 | X135: 0.8 | AA135: Argentina | AB135: Concepción del Uruguay | AC135: 60126 | AD135: OK
A136: 1987v2.xlsx | B136: 1987 | D136: C-8701 | E136: 1987-11-01 | G136: 1987-11-24 | H136: s/d | I136: 60 | J136: 60 | K136: Concepción del Uruguay | L136: 62 | M136: sup.canal | N136: SOHMA | O136: Procon-agua | P136: Agua | R136: Biocidas | S136: Aldrin | T136: ng/l | U136: < | V136: <LD | W136: 0.8 | X136: 0.8 | AA136: Canal | AB136: Canal | AC136: 60127 | AD136: OK
A137: 1987v2.xlsx | B137: 1987 | D137: C-8701 | E137: 1987-11-01 | G137: 1987-11-24 | H137: s/d | I137: 70 | J137: 70G | K137: Fray Bentos-Gualeguaychú desemb. (km 93)- Rio Negro | L137: 71 | M137: sup.m.arg. | N137: SOHMA | O137: Procon-agua | P137: Agua | R137: Biocidas | S137: Aldrin | T137: ng/l | U137: < | V137: <LD | W137: 0.8 | X137: 0.8 | AA137: Argentina | AB137: Gualeguaychú | AC137: 60128 | AD137: OK
A138: 1987v2.xlsx | B138: 1987 | D138: C-8701 | E138: 1987-11-01 | G138: 1987-11-24 | H138: s/d | I138: 70 | J138: 70 | K138: Fray Bentos-Gualeguaychú desemb. (km 93)- Rio Negro | L138: 72 | M138: sup.canal | N138: SOHMA | O138: Procon-agua | P138: Agua | R138: Biocidas | S138: Aldrin | T138: ng/l | U138: < | V138: <LD | W138: 0.8 | X138: 0.8 | AA138: Canal | AB138: Canal | AC138: 60129 | AD138: OK
A139: 1987v2.xlsx | B139: 1987 | D139: C-8701 | E139: 1987-11-01 | G139: 1987-11-24 | H139: s/d | I139: 60 | J139: 60C | K139: Concepción del Uruguay | L139: 61 | M139: sup.m.arg. | N139: SOHMA | O139: Procon-agua | P139: Agua | R139: Biocidas | S139: Dieldrin | T139: ng/l | U139: < | V139: <LD | W139: 0.7 | X139: 0.7 | AA139: Argentina | AB139: Concepción del Uruguay | AC139: 60134 | AD139: OK
A140: 1987v2.xlsx | B140: 1987 | D140: C-8701 | E140: 1987-11-01 | G140: 1987-11-24 | H140: s/d | I140: 60 | J140: 60 | K140: Concepción del Uruguay | L140: 62 | M140: sup.canal | N140: SOHMA | O140: Procon-agua | P140: Agua | R140: Biocidas | S140: Dieldrin | T140: ng/l | U140: < | V140: <LD | W140: 0.7 | X140: 0.7 | AA140: Canal | AB140: Canal | AC140: 60135 | AD140: OK
A141: 1987v2.xlsx | B141: 1987 | D141: C-8701 | E141: 1987-11-01 | G141: 1987-11-24 | H141: s/d | I141: 70 | J141: 70G | K141: Fray Bentos-Gualeguaychú desemb. (km 93)- Rio Negro | L141: 71 | M141: sup.m.arg. | N141: SOHMA | O141: Procon-agua | P141: Agua | R141: Biocidas | S141: Dieldrin | T141: ng/l | U141: < | V141: <LD | W141: 0.7 | X141: 0.7 | AA141: Argentina | AB141: Gualeguaychú | AC141: 60136 | AD141: OK
A142: 1987v2.xlsx | B142: 1987 | D142: C-8701 | E142: 1987-11-01 | G142: 1987-11-24 | H142: s/d | I142: 70 | J142: 70 | K142: Fray Bentos-Gualeguaychú desemb. (km 93)- Rio Negro | L142: 72 | M142: sup.canal | N142: SOHMA | O142: Procon-agua | P142: Agua | R142: Biocidas | S142: Dieldrin | T142: ng/l | U142: < | V142: <LD | W142: 0.7 | X142: 0.7 | AA142: Canal | AB142: Canal | AC142: 60137 | AD142: OK
A143: 1987v2.xlsx | B143: 1987 | D143: C-8701 | E143: 1987-11-01 | G143: 1987-11-24 | H143: s/d | I143: 60 | J143: 60C | K143: Concepción del Uruguay | L143: 61 | M143: sup.m.arg. | N143: SOHMA | O143: Procon-agua | P143: Agua | R143: Biocidas | S143: Endrin | T143: ng/l | U143: < | V143: <LD | W143: 0.3 | X143: 0.3 | AA143: Argentina | AB143: Concepción del Uruguay | AC143: 60142 | AD143: OK
A144: 1987v2.xlsx | B144: 1987 | D144: C-8701 | E144: 1987-11-01 | G144: 1987-11-24 | H144: s/d | I144: 60 | J144: 60 | K144: Concepción del Uruguay | L144: 62 | M144: sup.canal | N144: SOHMA | O144: Procon-agua | P144: Agua | R144: Biocidas | S144: Endrin | T144: ng/l | U144: < | V144: <LD | W144: 0.3 | X144: 0.3 | AA144: Canal | AB144: Canal | AC144: 60143 | AD144: OK
A145: 1987v2.xlsx | B145: 1987 | D145: C-8701 | E145: 1987-11-01 | G145: 1987-11-24 | H145: s/d | I145: 70 | J145: 70G | K145: Fray Bentos-Gualeguaychú desemb. (km 93)- Rio Negro | L145: 71 | M145: sup.m.arg. | N145: SOHMA | O145: Procon-agua | P145: Agua | R145: Biocidas | S145: Endrin | T145: ng/l | U145: < | V145: <LD | W145: 0.3 | X145: 0.3 | AA145: Argentina | AB145: Gualeguaychú | AC145: 60144 | AD145: OK
A146: 1987v2.xlsx | B146: 1987 | D146: C-8701 | E146: 1987-11-01 | G146: 1987-11-24 | H146: s/d | I146: 70 | J146: 70 | K146: Fray Bentos-Gualeguaychú desemb. (km 93)- Rio Negro | L146: 72 | M146: sup.canal | N146: SOHMA | O146: Procon-agua | P146: Agua | R146: Biocidas | S146: Endrin | T146: ng/l | U146: < | V146: <LD | W146: 0.3 | X146: 0.3 | AA146: Canal | AB146: Canal | AC146: 60145 | AD146: OK
A147: 1987v2.xlsx | B147: 1987 | D147: C-8701 | E147: 1987-11-01 | G147: 1987-11-24 | H147: s/d | I147: 60 | J147: 60C | K147: Concepción del Uruguay | L147: 61 | M147: sup.m.arg. | N147: SOHMA | O147: Procon-agua | P147: Agua | R147: Biocidas | S147: p-p´DDE | T147: ng/l | U147: < | V147: <LD | W147: =IF(V147="<LD",X147,IF(V147="<LC",Y147/2,V147)) -> 0.6 | X147: 0.6 | AA147: Argentina | AB147: Concepción del Uruguay | AC147: 60150 | AD147: OK
A148: 1987v2.xlsx | B148: 1987 | D148: C-8701 | E148: 1987-11-01 | G148: 1987-11-24 | H148: s/d | I148: 60 | J148: 60 | K148: Concepción del Uruguay | L148: 62 | M148: sup.canal | N148: SOHMA | O148: Procon-agua | P148: Agua | R148: Biocidas | S148: p-p´DDE | T148: ng/l | U148: = | V148: 6.8 | W148: 6.8 | X148: 0.6 | AA148: Canal | AB148: Canal | AC148: 60151 | AD148: OK
A149: 1987v2.xlsx | B149: 1987 | D149: C-8701 | E149: 1987-11-01 | G149: 1987-11-24 | H149: s/d | I149: 70 | J149: 70G | K149: Fray Bentos-Gualeguaychú desemb. (km 93)- Rio Negro | L149: 71 | M149: sup.m.arg. | N149: SOHMA | O149: Procon-agua | P149: Agua | R149: Biocidas | S149: p-p´DDE | T149: ng/l | U149: < | V149: <LD | W149: 0.6 | X149: 0.6 | AA149: Argentina | AB149: Gualeguaychú | AC149: 60152 | AD149: OK
A150: 1987v2.xlsx | B150: 1987 | D150: C-8701 | E150: 1987-11-01 | G150: 1987-11-24 | H150: s/d | I150: 70 | J150: 70 | K150: Fray Bentos-Gualeguaychú desemb. (km 93)- Rio Negro | L150: 72 | M150: sup.canal | N150: SOHMA | O150: Procon-agua | P150: Agua | R150: Biocidas | S150: p-p´DDE | T150: ng/l | U150: = | V150: 8 | W150: 8 | X150: 0.6 | AA150: Canal | AB150: Canal | AC150: 60153 | AD150: OK
A151: 1987v2.xlsx | B151: 1987 | D151: C-8701 | E151: 1987-11-01 | G151: 1987-11-24 | H151: s/d | I151: 60 | J151: 60C | K151: Concepción del Uruguay | L151: 61 | M151: sup.m.arg. | N151: SOHMA | O151: Procon-agua | P151: Agua | R151: Biocidas | S151: p-p´DDD | T151: ng/l | U151: < | V151: <LD | W151: 0.9 | X151: 0.9 | AA151: Argentina | AB151: Concepción del Uruguay | AC151: 60158 | AD151: OK
A152: 1987v2.xlsx | B152: 1987 | D152: C-8701 | E152: 1987-11-01 | G152: 1987-11-24 | H152: s/d | I152: 60 | J152: 60 | K152: Concepción del Uruguay | L152: 62 | M152: sup.canal | N152: SOHMA | O152: Procon-agua | P152: Agua | R152: Biocidas | S152: p-p´DDD | T152: ng/l | U152: < | V152: <LD | W152: 0.9 | X152: 0.9 | AA152: Canal | AB152: Canal | AC152: 60159 | AD152: OK
A153: 1987v2.xlsx | B153: 1987 | D153: C-8701 | E153: 1987-11-01 | G153: 1987-11-24 | H153: s/d | I153: 70 | J153: 70G | K153: Fray Bentos-Gualeguaychú desemb. (km 93)- Rio Negro | L153: 71 | M153: sup.m.arg. | N153: SOHMA | O153: Procon-agua | P153: Agua | R153: Biocidas | S153: p-p´DDD | T153: ng/l | U153: < | V153: <LD | W153: 0.9 | X153: 0.9 | AA153: Argentina | AB153: Gualeguaychú | AC153: 60160 | AD153: OK
A154: 1987v2.xlsx | B154: 1987 | D154: C-8701 | E154: 1987-11-01 | G154: 1987-11-24 | H154: s/d | I154: 70 | J154: 70 | K154: Fray Bentos-Gualeguaychú desemb. (km 93)- Rio Negro | L154: 72 | M154: sup.canal | N154: SOHMA | O154: Procon-agua | P154: Agua | R154: Biocidas | S154: p-p´DDD | T154: ng/l | U154: < | V154: <LD | W154: 0.9 | X154: 0.9 | AA154: Canal | AB154: Canal | AC154: 60161 | AD154: OK
A155: 1987v2.xlsx | B155: 1987 | D155: C-8701 | E155: 1987-11-01 | G155: 1987-11-24 | H155: s/d | I155: 60 | J155: 60C | K155: Concepción del Uruguay | L155: 61 | M155: sup.m.arg. | N155: SOHMA | O155: Procon-agua | P155: Agua | R155: Biocidas | S155: p-p´DDT | T155: ng/L | U155: < | V155: <LD | W155: 0.7 | X155: 0.7 | AA155: Argentina | AB155: Concepción del Uruguay | AC155: 60166 | AD155: OK
A156: 1987v2.xlsx | B156: 1987 | D156: C-8701 | E156: 1987-11-01 | G156: 1987-11-24 | H156: s/d | I156: 60 | J156: 60 | K156: Concepción del Uruguay | L156: 62 | M156: sup.canal | N156: SOHMA | O156: Procon-agua | P156: Agua | R156: Biocidas | S156: p-p´DDT | T156: ng/L | U156: < | V156: <LD | W156: 0.7 | X156: 0.7 | AA156: Canal | AB156: Canal | AC156: 60167 | AD156: OK
A157: 1987v2.xlsx | B157: 1987 | D157: C-8701 | E157: 1987-11-01 | G157: 1987-11-24 | H157: s/d | I157: 70 | J157: 70G | K157: Fray Bentos-Gualeguaychú desemb. (km 93)- Rio Negro | L157: 71 | M157: sup.m.arg. | N157: SOHMA | O157: Procon-agua | P157: Agua | R157: Biocidas | S157: p-p´DDT | T157: ng/L | U157: < | V157: <LD | W157: 0.7 | X157: 0.7 | AA157: Argentina | AB157: Gualeguaychú | AC157: 60168 | AD157: OK
A158: 1987v2.xlsx | B158: 1987 | D158: C-8701 | E158: 1987-11-01 | G158: 1987-11-24 | H158: s/d | I158: 70 | J158: 70 | K158: Fray Bentos-Gualeguaychú desemb. (km 93)- Rio Negro | L158: 72 | M158: sup.canal | N158: SOHMA | O158: Procon-agua | P158: Agua | R158: Biocidas | S158: p-p´DDT | T158: ng/L | U158: = | V158: 5.9 | W158: 5.9 | X158: 0.7 | AA158: Canal | AB158: Canal | AC158: 60169 | AD158: OK
A159: 1987v2.xlsx | B159: 1987 | D159: C-8701 | E159: 1987-11-01 | G159: 1987-11-24 | H159: s/d | I159: 60 | J159: 60C | K159: Concepción del Uruguay | L159: 61 | M159: sup.m.arg. | N159: SOHMA | O159: Procon-agua | P159: Agua | R159: Biocidas | S159: gamma-H.C.H./Lindano | T159: ng/l | U159: = | V159: 1.4 | W159: 1.4 | X159: 0.2 | AA159: Argentina | AB159: Concepción del Uruguay | AC159: 60174 | AD159: OK
A160: 1987v2.xlsx | B160: 1987 | D160: C-8701 | E160: 1987-11-01 | G160: 1987-11-24 | H160: s/d | I160: 60 | J160: 60 | K160: Concepción del Uruguay | L160: 62 | M160: sup.canal | N160: SOHMA | O160: Procon-agua | P160: Agua | R160: Biocidas | S160: gamma-H.C.H./Lindano | T160: ng/l | U160: = | V160: 1 | W160: 1 | X160: 0.2 | AA160: Canal | AB160: Canal | AC160: 60175 | AD160: OK
A161: 1987v2.xlsx | B161: 1987 | D161: C-8701 | E161: 1987-11-01 | G161: 1987-11-24 | H161: s/d | I161: 70 | J161: 70G | K161: Fray Bentos-Gualeguaychú desemb. (km 93)- Rio Negro | L161: 71 | M161: sup.m.arg. | N161: SOHMA | O161: Procon-agua | P161: Agua | R161: Biocidas | S161: gamma-H.C.H./Lindano | T161: ng/l | U161: = | V161: 5.7 | W161: 5.7 | X161: 0.2 | AA161: Argentina | AB161: Gualeguaychú | AC161: 60176 | AD161: OK
A162: 1987v2.xlsx | B162: 1987 | D162: C-8701 | E162: 1987-11-01 | G162: 1987-11-24 | H162: s/d | I162: 70 | J162: 70 | K162: Fray Bentos-Gualeguaychú desemb. (km 93)- Rio Negro | L162: 72 | M162: sup.canal | N162: SOHMA | O162: Procon-agua | P162: Agua | R162: Biocidas | S162: gamma-H.C.H./Lindano | T162: ng/l | U162: = | V162: 7 | W162: 7 | X162: 0.2 | AA162: Canal | AB162: Canal | AC162: 60177 | AD162: OK
A163: 1987v2.xlsx | B163: 1987 | D163: C-8701 | E163: 1987-11-01 | G163: 1987-11-24 | H163: s/d | I163: 60 | J163: 60C | K163: Concepción del Uruguay | L163: 61 | M163: sup.m.arg. | N163: SOHMA | O163: Procon-agua | P163: Agua | R163: Biocidas | S163: Endrin-aldehido | T163: ng/l | U163: < | V163: <LD | W163: 0 | X163: 0 | AA163: Argentina | AB163: Concepción del Uruguay | AC163: 60182 | AD163: OK
A164: 1987v2.xlsx | B164: 1987 | D164: C-8701 | E164: 1987-11-01 | G164: 1987-11-24 | H164: s/d | I164: 60 | J164: 60 | K164: Concepción del Uruguay | L164: 62 | M164: sup.canal | N164: SOHMA | O164: Procon-agua | P164: Agua | R164: Biocidas | S164: Endrin-aldehido | T164: ng/l | U164: < | V164: <LD | W164: 0 | X164: 0 | AA164: Canal | AB164: Canal | AC164: 60183 | AD164: OK
A165: 1987v2.xlsx | B165: 1987 | D165: C-8701 | E165: 1987-11-01 | G165: 1987-11-24 | H165: s/d | I165: 70 | J165: 70G | K165: Fray Bentos-Gualeguaychú desemb. (km 93)- Rio Negro | L165: 71 | M165: sup.m.arg. | N165: SOHMA | O165: Procon-agua | P165: Agua | R165: Biocidas | S165: Endrin-aldehido | T165: ng/l | U165: < | V165: <LD | W165: 0 | X165: 0 | AA165: Argentina | AB165: Gualeguaychú | AC165: 60184 | AD165: OK
A166: 1987v2.xlsx | B166: 1987 | D166: C-8701 | E166: 1987-11-01 | G166: 1987-11-24 | H166: s/d | I166: 70 | J166: 70 | K166: Fray Bentos-Gualeguaychú desemb. (km 93)- Rio Negro | L166: 72 | M166: sup.canal | N166: SOHMA | O166: Procon-agua | P166: Agua | R166: Biocidas | S166: Endrin-aldehido | T166: ng/l | U166: < | V166: <LD | W166: 0 | X166: 0 | AA166: Canal | AB166: Canal | AC166: 60185 | AD166: OK
A167: 1987v2.xlsx | B167: 1987 | D167: C-8701 | E167: 1987-11-01 | G167: 1987-11-24 | H167: s/d | I167: 60 | J167: 60C | K167: Concepción del Uruguay | L167: 61 | M167: sup.m.arg. | N167: SOHMA | O167: Procon-agua | P167: Agua | R167: Biocidas | S167: Endosulfan-l | T167: ng/l | U167: < | V167: <LD | W167: 0.6 | X167: 0.6 | Z167: Sin dato de LD | AA167: Argentina | AB167: Concepción del Uruguay | AC167: 60190 | AD167: OK
A168: 1987v2.xlsx | B168: 1987 | D168: C-8701 | E168: 1987-11-01 | G168: 1987-11-24 | H168: s/d | I168: 60 | J168: 60 | K168: Concepción del Uruguay | L168: 62 | M168: sup.canal | N168: SOHMA | O168: Procon-agua | P168: Agua | R168: Biocidas | S168: Endosulfan-l | T168: ng/l | U168: < | V168: <LD | W168: 0.6 | X168: 0.6 | Z168: Sin dato de LD | AA168: Canal | AB168: Canal | AC168: 60191 | AD168: OK
A169: 1987v2.xlsx | B169: 1987 | D169: C-8701 | E169: 1987-11-01 | G169: 1987-11-24 | H169: s/d | I169: 70 | J169: 70G | K169: Fray Bentos-Gualeguaychú desemb. (km 93)- Rio Negro | L169: 71 | M169: sup.m.arg. | N169: SOHMA | O169: Procon-agua | P169: Agua | R169: Biocidas | S169: Endosulfan-l | T169: ng/l | U169: < | V169: <LD | W169: 0.6 | X169: 0.6 | Z169: Sin dato de LD | AA169: Argentina | AB169: Gualeguaychú | AC169: 60192 | AD169: OK
A170: 1987v2.xlsx | B170: 1987 | D170: C-8701 | E170: 1987-11-01 | G170: 1987-11-24 | H170: s/d | I170: 70 | J170: 70 | K170: Fray Bentos-Gualeguaychú desemb. (km 93)- Rio Negro | L170: 72 | M170: sup.canal | N170: SOHMA | O170: Procon-agua | P170: Agua | R170: Biocidas | S170: Endosulfan-l | T170: ng/l | U170: < | V170: <LD | W170: 0.6 | X170: 0.6 | Z170: Sin dato de LD | AA170: Canal | AB170: Canal | AC170: 60193 | AD170: OK
A171: 1987v2.xlsx | B171: 1987 | D171: C-8701 | E171: 1987-11-01 | G171: 1987-11-24 | H171: s/d | I171: 60 | J171: 60C | K171: Concepción del Uruguay | L171: 61 | M171: sup.m.arg. | N171: SOHMA | O171: Procon-agua | P171: Agua | R171: Biocidas | S171: Endosulfan-ll | T171: ng/l | U171: < | V171: <LD | W171: 1 | X171: 1 | AA171: Argentina | AB171: Concepción del Uruguay | AC171: 60198 | AD171: OK
A172: 1987v2.xlsx | B172: 1987 | D172: C-8701 | E172: 1987-11-01 | G172: 1987-11-24 | H172: s/d | I172: 60 | J172: 60 | K172: Concepción del Uruguay | L172: 62 | M172: sup.canal | N172: SOHMA | O172: Procon-agua | P172: Agua | R172: Biocidas | S172: Endosulfan-ll | T172: ng/l | U172: < | V172: <LD | W172: =IF(V172="<LD",X172,IF(V172="<LC",Y172/2,V172)) -> 1 | X172: 1 | AA172: Canal | AB172: Canal | AC172: 60199 | AD172: OK
A173: 1987v2.xlsx | B173: 1987 | D173: C-8701 | E173: 1987-11-01 | G173: 1987-11-24 | H173: s/d | I173: 70 | J173: 70G | K173: Fray Bentos-Gualeguaychú desemb. (km 93)- Rio Negro | L173: 71 | M173: sup.m.arg. | N173: SOHMA | O173: Procon-agua | P173: Agua | R173: Biocidas | S173: Endosulfan-ll | T173: ng/l | U173: < | V173: <LD | W173: 1 | X173: 1 | AA173: Argentina | AB173: Gualeguaychú | AC173: 60200 | AD173: OK
A174: 1987v2.xlsx | B174: 1987 | D174: C-8701 | E174: 1987-11-01 | G174: 1987-11-24 | H174: s/d | I174: 70 | J174: 70 | K174: Fray Bentos-Gualeguaychú desemb. (km 93)- Rio Negro | L174: 72 | M174: sup.canal | N174: SOHMA | O174: Procon-agua | P174: Agua | R174: Biocidas | S174: Endosulfan-ll | T174: ng/l | U174: < | V174: <LD | W174: 1 | X174: 1 | AA174: Canal | AB174: Canal | AC174: 60201 | AD174: OK
A175: 1987v2.xlsx | B175: 1987 | D175: C-8701 | E175: 1987-11-01 | G175: 1987-11-24 | H175: s/d | I175: 60 | J175: 60C | K175: Concepción del Uruguay | L175: 61 | M175: sup.m.arg. | N175: SOHMA | O175: Procon-agua | P175: Agua | R175: Biocidas | S175: Endosulfan-sulfato | T175: ng/l | U175: < | V175: <LD | W175: 0.7 | X175: 0.7 | AA175: Argentina | AB175: Concepción del Uruguay | AC175: 60206 | AD175: OK
A176: 1987v2.xlsx | B176: 1987 | D176: C-8701 | E176: 1987-11-01 | G176: 1987-11-24 | H176: s/d | I176: 60 | J176: 60 | K176: Concepción del Uruguay | L176: 62 | M176: sup.canal | N176: SOHMA | O176: Procon-agua | P176: Agua | R176: Biocidas | S176: Endosulfan-sulfato | T176: ng/l | U176: < | V176: <LD | W176: 0.7 | X176: 0.7 | AA176: Canal | AB176: Canal | AC176: 60207 | AD176: OK
A177: 1987v2.xlsx | B177: 1987 | D177: C-8701 | E177: 1987-11-01 | G177: 1987-11-24 | H177: s/d | I177: 70 | J177: 70G | K177: Fray Bentos-Gualeguaychú desemb. (km 93)- Rio Negro | L177: 71 | M177: sup.m.arg. | N177: SOHMA | O177: Procon-agua | P177: Agua | R177: Biocidas | S177: Endosulfan-sulfato | T177: ng/l | U177: < | V177: <LD | W177: 0.7 | X177: 0.7 | AA177: Argentina | AB177: Gualeguaychú | AC177: 60208 | AD177: OK
A178: 1987v2.xlsx | B178: 1987 | D178: C-8701 | E178: 1987-11-01 | G178: 1987-11-24 | H178: s/d | I178: 70 | J178: 70 | K178: Fray Bentos-Gualeguaychú desemb. (km 93)- Rio Negro | L178: 72 | M178: sup.canal | N178: SOHMA | O178: Procon-agua | P178: Agua | R178: Biocidas | S178: Endosulfan-sulfato | T178: ng/l | U178: < | V178: <LD | W178: 0.7 | X178: 0.7 | AA178: Canal | AB178: Canal | AC178: 60209 | AD178: OK
A179: 1987v2.xlsx | B179: 1987 | D179: C-8701 | E179: 1987-11-01 | G179: 1987-11-24 | H179: s/d | I179: 50 | J179: 50C | K179: Colón-Paysandú | L179: 51 | M179: sup.m.arg. | N179: SOHMA | O179: Procon-agua | P179: Agua | R179: Biocidas | S179: alfa-H.C.H. | T179: ng/l | U179: = | V179: 1 | W179: =IF(V179="<LD",X179,IF(V179="<LC",Y179/2,V179)) -> 1 | X179: 0.9 | AA179: Argentina | AB179: Colón | AC179: 60255 | AD179: OK
A180: 1987v2.xlsx | B180: 1987 | D180: C-8701 | E180: 1987-11-01 | G180: 1987-11-24 | H180: s/d | I180: 50 | J180: 50C | K180: Colón-Paysandú | L180: 51 | M180: sup.m.arg. | N180: SOHMA | O180: Procon-agua | P180: Agua | R180: Biocidas | S180: beta-H.C.H. | T180: ng/l | U180: < | V180: <LD | W180: 1 | X180: 1 | AA180: Argentina | AB180: Colón | AC180: 60256 | AD180: OK
A181: 1987v2.xlsx | B181: 1987 | D181: C-8701 | E181: 1987-11-01 | G181: 1987-11-24 | H181: s/d | I181: 50 | J181: 50C | K181: Colón-Paysandú | L181: 51 | M181: sup.m.arg. | N181: SOHMA | O181: Procon-agua | P181: Agua | R181: Biocidas | S181: Heptacloro | T181: ng/l | U181: < | V181: <LD | W181: 0.2 | X181: 0.2 | AA181: Argentina | AB181: Colón | AC181: 60257 | AD181: OK
A182: 1987v2.xlsx | B182: 1987 | D182: C-8701 | E182: 1987-11-01 | G182: 1987-11-24 | H182: s/d | I182: 50 | J182: 50C | K182: Colón-Paysandú | L182: 51 | M182: sup.m.arg. | N182: SOHMA | O182: Procon-agua | P182: Agua | R182: Biocidas | S182: Heptacloro-epoxi | T182: ng/l | U182: < | V182: <LD | W182: 0.7 | X182: 0.7 | AA182: Argentina | AB182: Colón | AC182: 60258 | AD182: OK
A183: 1987v2.xlsx | B183: 1987 | D183: C-8701 | E183: 1987-11-01 | G183: 1987-11-24 | H183: s/d | I183: 50 | J183: 50C | K183: Colón-Paysandú | L183: 51 | M183: sup.m.arg. | N183: SOHMA | O183: Procon-agua | P183: Agua | R183: Biocidas | S183: Aldrin | T183: ng/l | U183: < | V183: <LD | W183: 0.8 | X183: 0.8 | AA183: Argentina | AB183: Colón | AC183: 60259 | AD183: OK
A184: 1987v2.xlsx | B184: 1987 | D184: C-8701 | E184: 1987-11-01 | G184: 1987-11-24 | H184: s/d | I184: 50 | J184: 50C | K184: Colón-Paysandú | L184: 51 | M184: sup.m.arg. | N184: SHN | O184: Procon-agua | P184: Agua | R184: Hidrocarburos | S184: Hidrocarburos-totales | T184: µg/l | U184: = | V184: 7 | W184: 7 | X184: 0.1 | AA184: Argentina | AB184: Colón | AC184: 59873 | AD184: OK
A185: 1987v2.xlsx | B185: 1987 | D185: C-8701 | E185: 1987-11-01 | G185: 1987-11-24 | H185: s/d | I185: 60 | J185: 60C | K185: Concepción del Uruguay | L185: 61 | M185: sup.m.arg. | N185: SHN | O185: Procon-agua | P185: Agua | R185: Hidrocarburos | S185: Hidrocarburos-totales | T185: µg/l | U185: = | V185: 20 | W185: 20 | X185: 0.1 | AA185: Argentina | AB185: Concepción del Uruguay | AC185: 59874 | AD185: OK
A186: 1987v2.xlsx | B186: 1987 | D186: C-8701 | E186: 1987-11-01 | G186: 1987-11-24 | H186: s/d | I186: 60 | J186: 60 | K186: Concepción del Uruguay | L186: 62 | M186: sup.canal | N186: SHN | O186: Procon-agua | P186: Agua | R186: Hidrocarburos | S186: Hidrocarburos-totales | T186: µg/l | U186: = | V186: 5 | W186: 5 | X186: 0.1 | AA186: Canal | AB186: Canal | AC186: 59875 | AD186: OK
A187: 1987v2.xlsx | B187: 1987 | D187: C-8701 | E187: 1987-11-01 | G187: 1987-11-24 | H187: s/d | I187: 70 | J187: 70G | K187: Fray Bentos-Gualeguaychú desemb. (km 93)- Rio Negro | L187: 71 | M187: sup.m.arg. | N187: SHN | O187: Procon-agua | P187: Agua | R187: Hidrocarburos | S187: Hidrocarburos-totales | T187: µg/l | U187: = | V187: 11 | W187: 11 | X187: 0.1 | AA187: Argentina | AB187: Gualeguaychú | AC187: 59876 | AD187: OK
A188: 1987v2.xlsx | B188: 1987 | D188: C-8701 | E188: 1987-11-01 | G188: 1987-11-24 | H188: s/d | I188: 50 | J188: 50C | K188: Colón-Paysandú | L188: 51 | M188: sup.m.arg. | N188: SHN | O188: Procon-agua | P188: Agua | R188: Hidrocarburos | S188: SAAM | T188: mg LAS/l | U188: = | V188: 0.88 | W188: 0.88 | X188: 0.005 | AA188: Argentina | AB188: Colón | AC188: 59893 | AD188: OK
A189: 1987v2.xlsx | B189: 1987 | D189: C-8701 | E189: 1987-11-01 | G189: 1987-11-24 | H189: s/d | I189: 60 | J189: 60C | K189: Concepción del Uruguay | L189: 61 | M189: sup.m.arg. | N189: SHN | O189: Procon-agua | P189: Agua | R189: Hidrocarburos | S189: SAAM | T189: mg LAS/l | U189: = | V189: 1.61 | W189: 1.61 | X189: 0.005 | AA189: Argentina | AB189: Concepción del Uruguay | AC189: 59894 | AD189: OK
A190: 1987v2.xlsx | B190: 1987 | D190: C-8701 | E190: 1987-11-01 | G190: 1987-11-24 | H190: s/d | I190: 60 | J190: 60 | K190: Concepción del Uruguay | L190: 62 | M190: sup.canal | N190: SHN | O190: Procon-agua | P190: Agua | R190: Hidrocarburos | S190: SAAM | T190: mg LAS/l | U190: = | V190: 1.17 | W190: 1.17 | X190: 0.005 | AA190: Canal | AB190: Canal | AC190: 59895 | AD190: OK
A191: 1987v2.xlsx | B191: 1987 | D191: C-8701 | E191: 1987-11-01 | G191: 1987-11-24 | H191: s/d | I191: 70 | J191: 70G | K191: Fray Bentos-Gualeguaychú desemb. (km 93)- Rio Negro | L191: 71 | M191: sup.m.arg. | N191: SHN | O191: Procon-agua | P191: Agua | R191: Hidrocarburos | S191: SAAM | T191: mg LAS/l | U191: = | V191: 6.56 | W191: 6.56 | X191: 0.005 | AA191: Argentina | AB191: Gualeguaychú | AC191: 59896 | AD191: OK
A192: 1987v2.xlsx | B192: 1987 | D192: C-8701 | E192: 1987-11-01 | G192: 1987-11-24 | H192: s/d | I192: 70 | J192: 70 | K192: Fray Bentos-Gualeguaychú desemb. (km 93)- Rio Negro | L192: 72 | M192: sup.canal | N192: SHN | O192: Procon-agua | P192: Agua | R192: Hidrocarburos | S192: SAAM | T192: mg LAS/l | U192: = | V192: 0.69 | W192: 0.69 | X192: 0.005 | AA192: Canal | AB192: Canal | AC192: 59897 | AD192: OK
A193: 1987v2.xlsx | B193: 1987 | D193: C-8701 | E193: 1987-11-01 | G193: 1987-11-24 | H193: s/d | I193: 50 | J193: 50C | K193: Colón-Paysandú | L193: 51 | M193: sup.m.arg. | O193: Procon-agua | P193: Agua | R193: In situ | S193: O.D. | T193: mg O2/l | U193: = | V193: 7.4 | W193: 7.4 | AA193: Argentina | AB193: Colón | AC193: 59444 | AD193: OK
A194: 1987v2.xlsx | B194: 1987 | D194: C-8701 | E194: 1987-11-01 | G194: 1987-11-24 | H194: s/d | I194: 60 | J194: 60C | K194: Concepción del Uruguay | L194: 61 | M194: sup.m.arg. | O194: Procon-agua | P194: Agua | R194: In situ | S194: O.D. | T194: mg O2/l | U194: = | V194: 7.5 | W194: 7.5 | AA194: Argentina | AB194: Concepción del Uruguay | AC194: 59445 | AD194: OK
A195: 1987v2.xlsx | B195: 1987 | D195: C-8701 | E195: 1987-11-01 | G195: 1987-11-24 | H195: s/d | I195: 60 | J195: 60 | K195: Concepción del Uruguay | L195: 62 | M195: sup.canal | O195: Procon-agua | P195: Agua | R195: In situ | S195: O.D. | T195: mg O2/l | U195: = | V195: 7.5 | W195: 7.5 | AA195: Canal | AB195: Canal | AC195: 59446 | AD195: OK
A196: 1987v2.xlsx | B196: 1987 | D196: C-8701 | E196: 1987-11-01 | G196: 1987-11-24 | H196: s/d | I196: 70 | J196: 70G | K196: Fray Bentos-Gualeguaychú desemb. (km 93)- Rio Negro | L196: 71 | M196: sup.m.arg. | O196: Procon-agua | P196: Agua | R196: In situ | S196: O.D. | T196: mg O2/l | U196: = | V196: 7.4 | W196: 7.4 | AA196: Argentina | AB196: Gualeguaychú | AC196: 59447 | AD196: OK
A197: 1987v2.xlsx | B197: 1987 | D197: C-8701 | E197: 1987-11-01 | G197: 1987-11-24 | H197: s/d | I197: 70 | J197: 70 | K197: Fray Bentos-Gualeguaychú desemb. (km 93)- Rio Negro | L197: 72 | M197: sup.canal | O197: Procon-agua | P197: Agua | R197: In situ | S197: O.D. | T197: mg O2/l | U197: = | V197: 7.4 | W197: 7.4 | AA197: Canal | AB197: Canal | AC197: 59448 | AD197: OK
A198: 1987v2.xlsx | B198: 1987 | D198: C-8701 | E198: 1987-11-01 | G198: 1987-11-24 | H198: s/d | I198: 50 | J198: 50C | K198: Colón-Paysandú | L198: 51 | M198: sup.m.arg. | O198: Procon-agua | P198: Agua | R198: In situ | S198: pH | T198: UpH | V198: 7.85 | W198: 7.85 | AA198: Argentina | AB198: Colón | AC198: 59465 | AD198: OK
A199: 1987v2.xlsx | B199: 1987 | D199: C-8701 | E199: 1987-11-01 | G199: 1987-11-24 | H199: s/d | I199: 60 | J199: 60C | K199: Concepción del Uruguay | L199: 61 | M199: sup.m.arg. | O199: Procon-agua | P199: Agua | R199: In situ | S199: pH | T199: UpH | V199: 7.66 | W199: 7.66 | AA199: Argentina | AB199: Concepción del Uruguay | AC199: 59466 | AD199: OK
A200: 1987v2.xlsx | B200: 1987 | D200: C-8701 | E200: 1987-11-01 | G200: 1987-11-24 | H200: s/d | I200: 60 | J200: 60 | K200: Concepción del Uruguay | L200: 62 | M200: sup.canal | O200: Procon-agua | P200: Agua | R200: In situ | S200: pH | T200: UpH | V200: 7.25 | W200: 7.25 | AA200: Canal | AB200: Canal | AC200: 59467 | AD200: OK
... 2050 more rows

Sheet Hoja1
